Cogmind - Beta 16 @@@ ROGUE MODE // 2025.11.01 @ 19:23:06 Player: Darcyisverycute Result: Destroyed Tau Ceti IV! Performance ------------- Evolutions (9) 4500 Regions Visited (22) 4400 Robots Destroyed (621) 3105 Value Destroyed (40631) 40631 Prototype IDs (366) 7320 Alien Tech Used (2) 400 Bonus (65333) 65333 TOTAL SCORE: 125689 Bonus ------- Triggered High Security 1000 High Alert Combat Kills 21527 Follower Combat Kills 3218 Destroyed Unchained 1000 Entered Garrisons 1000 Used RIF Installer 2500 Hacked Protovariant 500 Scanned by Researcher 500 Destroyed MAIN.C Guards 500 Met MAIN.C 5000 Destroyed MAIN.C Shell 5000 Destroyed MAIN.C 10000 Met Architect 300 Started Test 138-B 500 Started Test 138-C 8000 Destroyed A8 300 Destroyed A6 400 Destroyed A5 500 Destroyed A2 1000 Win 3000 Friendly Fire -412 Cogmind --------- Core Integrity 1146/1600 Matter 291/300 Energy 1800/1800 System Corruption 2% Temperature Cool (0) Movement Walking (100) Location Subspace Parts ------- > --- POWER (4) -------- Hybrid Graviton Reactor Zero-point Reactor Zero-point Reactor Concept Zero-point Core > --- PROPULSION (7) --- Experimental VSS Leg (fused) Experimental Armored Exoskeleton Concept Biometal Exoskeleton > --- UTILITY (11) ----- Experimental Cooling System Concept Antigrav Storage Unit Experimental Optical Array Experimental Targeting Computer Concept Weapon Articulator (fused) Experimental Core Analyzer Advanced Particle Accelerator Mini Quantum Capacitor Graphene Brace AEGIS Remote Shield Concept Impact Drone Bay (3/6) > --- WEAPON (3) ------- Concept Plasma Driver Concept Miniperforator > --- INVENTORY (25) --- Improved Quantum Reactor Concept Zero-point Core Thunder Leg High-density Centrium Leg Experimental Biometal Leg Experimental Biometal Leg Concept Biometal Exoskeleton Advanced Power Amplifier Experimental Cooling System Experimental Matter Compressor (142) Concept NT7 Matterbank (750) Triangulator Advanced Particle Charger Improved Reaction Control System Advanced Phase Shifter Improved Utility Shielding Experimental Powered Armor Experimental Powered Armor Subatomic Replicator Concept Plasma Driver Concept Plasma Driver Cooled Directed Potential Cannon Peak State ------------ > --- POWER ------------ Experimental Antimatter Reactor Experimental Antimatter Reactor Hybrid Graviton Reactor Concept Zero-point Core > --- PROPULSION ------- Experimental VSS Leg Experimental Armored Exoskeleton Concept Biometal Exoskeleton > --- UTILITY ---------- Experimental Coolant Injector Concept Antigrav Storage Unit Experimental Active Sensor Suite Concept Weapon Articulator Experimental Core Analyzer Concept Cloak Mesh Concept Cloak Mesh Centrium Medium Armor Plating Graphene Brace AEGIS Remote Shield > --- WEAPON ----------- Concept Plasma Driver Perforator > --- INVENTORY -------- Concept Zero-point Core Concept Biometal Exoskeleton Experimental Energy Well Concept NT7 Matterbank Precision Matter Filter Experimental Kinecellerator Mini Quantum Capacitor Improved Weapon Shielding Concept Antimissile System Concept Impact Drone Bay Concept Impact Drone Bay High-powered Transdimensional Reconstructor Subatomic Replicator Enhanced Quantum Rifle Concept Plasma Driver Concept Plasma Driver Cooled Directed Potential Cannon Concept Miniperforator Concept Miniperforator Concept Heavy Railcannon Improved Remote Datajack [Rating: 300] Favorites ----------- Power Experimental Antimatter Reactor Engine Cooled Ion Engine Power Core Concept Zero-point Core Reactor Experimental Antimatter Reactor Propulsion Light Treads Treads Light Treads Leg Experimental VSS Leg Wheel Wheel Hover Unit Improved Antigrav System Flight Unit Improved VTOL Module Utility Graphene Brace Device Graphene Brace Storage Concept Antigrav Storage Unit Processor Experimental Core Analyzer Hackware Relay Coupler [Sentry] Protection Centrium Medium Armor Plating Weapon Concept Plasma Driver Energy Gun Tesla Rifle Energy Cannon Concept Plasma Driver Ballistic Gun Heavy Assault Rifle Ballistic Cannon Concept Heavy Railcannon Launcher Mini Grenade Launcher Special Weapon Remote Datajack Impact Weapon Mace Slashing Weapon Power Sword Piercing Weapon Lance Special Melee Weapon Datajack Build | -11 -10 -9 -9 -8 -8 -7 -7 -7 -7 -6 -6 -5 -4 -4 -3 -3 -2 -2 -2 -1 -1 -1 ------- Run | Yrd Mat Mat Sto Mat Gar Fac Gar Fac Gar Fac Gar Fac Fac Gar Res Tes Res Qua Frg Acc Com Ac0 Slots Evolved 18 | . . 2 . 2 . 2 . . . 2 . 2 2 . 2 . 2 . . 2 . . Power 3 | . . . . . . . . . . . . 1 . . . . 1 . . 1 . . Propulsion 5 | . . 1 . 1 . . . . . 1 . 1 . . 1 . . . . . . . Utility 9 | . . 1 . 1 . 2 . . . 1 . . 2 . 1 . 1 . . . . . Weapon 1 | . . . . . . . . . . . . . . . . . . . . 1 . . Parts Attached 360 | 7 10 17 11 2 7 1 25 10 9 8 9 34 46 29 19 22 5 10 37 21 18 3 Power 35 | 1 2 . 2 . . . 1 . . 1 2 5 5 3 1 1 1 1 7 . 2 . Engine 10 | 1 2 . 2 . . . 1 . . . 2 1 1 . . . . . . . . . Core 10 | . . . . . . . . . . 1 . 3 3 1 . 1 . . 1 . . . Reactor 15 | . . . . . . . . . . . . 1 1 2 1 . 1 1 6 . 2 . Propulsion 83 | 2 2 5 1 1 2 . 5 5 . 1 . 12 18 12 3 4 . 2 7 1 . . Treads 12 | 2 . 2 1 1 2 . 1 . . . . 2 . . . 1 . . . . . . Leg 29 | . . . . . . . . . . . . 2 5 8 3 1 . 2 7 1 . . Wheel 8 | . 2 3 . . . . . . . . . . 2 . . 1 . . . . . . Hover 16 | . . . . . . . . . . . . 2 11 3 . . . . . . . . Flight 18 | . . . . . . . 4 5 . 1 . 6 . 1 . 1 . . . . . . Utility 153 | 2 3 5 2 1 2 . 17 4 7 4 6 9 18 6 8 6 3 4 16 13 14 3 Device 64 | 1 1 1 . . 1 . . 2 . 1 1 2 10 2 4 4 2 2 11 10 6 3 Storage 12 | 1 2 1 . . . . . . . 1 . 1 2 . . . . . 3 . 1 . Processor 19 | . . . . . . . . . . 1 . 3 2 2 1 2 . . 1 2 5 . Hackware 36 | . . . 1 . . . 15 1 7 1 4 2 2 . 2 . . 1 . . . . Protection 22 | . . 3 1 1 1 . 2 1 . . 1 1 2 2 1 . 1 1 1 1 2 . Artifact . | . . . . . . . . . . . . . . . . . . . . . . . Weapon 89 | 2 3 7 6 . 3 1 2 1 2 2 1 8 5 8 7 11 1 3 7 7 2 . Energy Gun 13 | . 1 . . . . . . . . . . . 2 2 1 1 . 1 3 . 2 . Energy Cannon 17 | . . . 1 . . . . . . 1 . 2 . 1 2 5 . 1 3 1 . . Ballistic Gun 22 | 2 2 5 4 . 1 . 1 . . . . 1 . 4 . 1 . . . 1 . . Ballistic Cannon 8 | . . . . . . . . . 2 . . . . . . 2 . . . 4 . . Launcher 10 | . . 2 . . 1 . . . . . 1 1 . 1 1 1 1 . 1 . . . Special Weapon 8 | . . . . . . 1 . 1 . . . 2 1 . 1 . . 1 . 1 . . Impact Weapon 1 | . . . 1 . . . . . . . . . . . . . . . . . . . Slashing Weapon 7 | . . . . . . . . . . 1 . 2 2 . 1 1 . . . . . . Piercing Weapon 1 | . . . . . . . 1 . . . . . . . . . . . . . . . Special Melee Weapon 2 | . . . . . 1 . . . . . . . . . 1 . . . . . . . Unidentified Prototypes 50 | . 1 . 3 . . . . . . 1 . 4 3 . 5 18 1 2 4 6 2 . Corrupted Parts 2 | . . . . . . . . . . . . . . 2 . . . . . . . . System Corruption 8 | . . . . . . . . . . . . . . 8 . . . . . . . . Parts Lost 83 | . 2 4 . 1 1 . 8 1 . . 1 20 15 19 . . 3 1 2 3 1 1 Power 17 | . 1 1 . . . . . . . . 1 5 2 4 . . 1 1 1 . . . Propulsion 34 | . 1 1 . 1 . . 5 . . . . 9 9 7 . . . . 1 . . . Utility 19 | . . 1 . . 1 . 2 1 . . . 3 3 4 . . 1 . . 2 1 . Weapon 13 | . . 1 . . . . 1 . . . . 3 1 4 . . 1 . . 1 . 1 Highest Loss Streak 9 | . 2 1 . 1 1 . 6 1 . . 1 6 6 9 . . 2 1 1 2 1 1 To Critical Strikes 1 | . . . . . . . . . . . . 1 . . . . . . . . . . Average Backups 17 | 3 14 24 25 25 24 25 21 4 4 5 9 7 14 4 17 18 17 16 19 21 21 21 Power . | . . . . 1 1 1 . . . . . . 1 . . . . . . 1 1 1 Propulsion 2 | 1 3 4 5 5 4 4 3 . . . . . 3 . 2 3 2 1 . 1 4 5 Utility 7 | . 3 8 8 8 10 14 11 . 1 3 5 4 6 2 8 10 10 8 7 9 8 10 Weapon 5 | . 6 9 10 10 7 5 5 3 3 2 3 2 2 1 4 4 3 3 5 6 4 3 Tool/Special . | . . . . . . . . . . . . . . . . . . . . . . . Unused Backups 72 | . 2 1 3 . 5 . 7 3 3 2 2 . 3 4 4 4 1 1 8 1 3 15 Power 3 | . . . . . . . . . . . . . 1 . . . . . . . . 2 Propulsion 12 | . . . . . . . . . . . . . 2 1 1 . 1 . . . 2 5 Utility 33 | . 1 . 1 . 3 . 6 1 2 1 2 . . 2 . 2 . 1 3 . 1 7 Weapon 20 | . 1 1 2 . 2 . 1 2 1 1 . . . 1 3 2 . . 2 1 . . Tool/Special 4 | . . . . . . . . . . . . . . . . . . . 3 . . 1 Average Slot Usage (%) 85 | . 92 90 99 78 95 84 91 100 98 96 88 79 83 78 86 89 90 90 85 73 78 79 Engine 2 | . 10 4 11 9 9 7 7 7 7 2 2 2 . . . . . . . . . . Core 2 | . . . . . . . . . . 3 3 3 2 3 . 3 4 4 3 4 4 4 Reactor 5 | . . . . . . . . . . . . . 3 5 9 4 6 6 7 12 12 12 Treads 4 | . 9 7 11 9 28 30 23 . . . . 1 . . . . . . . . . . Leg 9 | . . . . . . . . . . . . 4 6 12 19 27 26 25 20 12 12 12 Wheel 3 | . 18 23 22 12 3 . . . . . . . . . . . 4 4 2 . . . Hover 1 | . . . . . . . . . . . . . 18 7 8 . . . . . . . Flight 3 | . . . . . . . 4 30 30 29 33 19 . . . . . . . . . . Device 16 | . 9 9 . . 3 . . 1 . 2 . 1 6 17 17 23 23 22 26 30 29 27 Storage 5 | . 14 11 11 9 9 7 6 . . 1 6 4 3 . 4 4 4 4 4 4 4 4 Processor 4 | . . . . . . . . . . 3 6 8 13 10 5 5 8 8 7 1 7 12 Hackware 7 | . . . 9 9 9 7 19 39 36 33 13 15 15 4 5 7 4 4 1 . . . Protection 4 | . . 11 12 10 13 15 13 4 6 4 8 4 2 3 3 . . 2 1 4 . . Energy Cannon 2 | . . . . . . . . . . . . 1 . 1 5 5 3 3 3 3 2 4 Ballistic Gun 4 | . 28 21 20 18 10 3 4 . . . . . . 5 1 . 3 . . . . . Ballistic Cannon 1 | . . . . . . . . . 3 4 . 3 . . . . . . 1 2 3 3 Peak Build Rating 300 | 7 10 19 26 26 32 29 42 50 50 61 61 102 114 133 154 179 195 192 275 300 293 284 Average Rating 145 | 5 7 13 23 25 28 28 33 44 47 54 54 68 91 104 147 158 183 180 210 282 281 275 On Entrance 95 | . 7 9 19 26 26 29 28 42 50 46 59 58 43 91 130 154 179 170 178 275 283 284 Avg Prop Armor Cover (%) 8 | . 13 7 6 7 11 . . . . 7 . 15 21 3 1 13 2 4 4 1 . . Naked Turns . | . . . . . . . . . . . . . . . . . . . . . . . Heaviest Build 173 | 13 48 100 102 105 105 101 106 16 17 23 36 45 77 109 117 120 130 143 149 162 173 168 Greatest Support 204 | 40 40 32 22 22 83 83 83 20 20 27 27 64 80 120 204 204 172 172 188 184 184 184 Greatest Overweight (x) 10 | . 2 4 4 10 10 1 5 . . 1 1 2 2 2 . . . 1 1 . . . Average Overweight (x) . | . 1 3 4 6 4 1 . . . . . . . . . . . . . . . . Largest Inventory Capacity 25 | 8 20 25 25 25 25 25 25 5 5 10 10 10 20 20 20 20 20 20 25 25 25 25 Average Capacity 20 | 7 17 24 25 25 25 25 22 5 5 6 10 9 16 6 20 20 20 20 23 25 25 25 Most Carried 25 | 7 20 25 25 25 25 25 25 5 5 10 10 10 20 20 20 20 20 20 25 25 25 25 Average Carried 19 | 3 14 24 24 24 24 25 21 4 4 5 9 8 15 5 18 19 19 19 22 24 24 24 Final Capacity 25 | 8 20 25 25 25 25 25 5 5 5 10 10 5 20 20 20 20 20 20 25 25 25 25 Final Carried 25 | 7 20 25 25 24 25 25 5 5 4 10 10 5 20 11 19 20 20 20 25 25 25 25 Class Distribution -------------------- 26% | Mutant 19% | Scavenger-Mutant 15% | Generator-Gunner 8% | Generator-Tank 6% | Bothacker-Mutant 6% | Bothacker-Sprinter 5% | Commander-Mutant 4% | Generator-Skirmisher Dominant Class ---------------- Mutant | -10/Materials Mutant | -9/Materials Mutant | -9/Storage Commander-Mutant | -8/Materials Scavenger-Mutant | -8/Garrison Bothacker-Mutant | -7/Factory Bothacker-Mutant | -7/Garrison Bothacker-Sprinter | -7/Factory Bothacker-Sprinter | -7/Garrison Bothacker-Sprinter | -6/Factory Bothacker-Sprinter | -6/Garrison Mutant | -5/Factory Mutant | -4/Factory Scavenger-Mutant | -4/Garrison Scavenger-Mutant | -3/Research Mutant | -3/Testing Mutant | -2/Research Scavenger-Mutant | -2/Quarantine Scavenger-Mutant | -2/Protoforge Generator-Tank | -1/Access Generator-Gunner | -1/Command Generator-Mutant | -1/Access_0 Resources | -11 -10 -9 -9 -8 -8 -7 -7 -7 -7 -6 -6 -5 -4 -4 -3 -3 -2 -2 -2 -1 -1 -1 ----------- Run | Yrd Mat Mat Sto Mat Gar Fac Gar Fac Gar Fac Gar Fac Fac Gar Res Tes Res Qua Frg Acc Com Ac0 Matter Collected 21302 | 310 314 989 659 70 706 . 802 224 317 20 500 1347 713 926 303 554 140 542 3449 3543 2914 1960 Remotely 1988 | . . . . . . . . . . . . . . . . . . . . 1988 . . Salvage Created 34081 | 124 392 1394 1157 118 669 . 284 . 386 20 157 938 1030 1329 967 865 971 1294 4312 13314 3038 1322 Parts 1349 | 17 33 74 77 9 53 . 16 . 16 1 4 43 54 50 51 37 23 57 208 337 121 68 Haulers Intercepted 16 | . 2 4 2 1 . . . . . . . 2 1 . 1 1 1 . . 1 . . Recyclers Shooed 10 | . 1 1 2 . . . . . . . . . 1 . . . 2 . . 1 2 . Parts Field Recycled . | . . . . . . . . . . . . . . . . . . . . . . . Retrieved Matter . | . . . . . . . . . . . . . . . . . . . . . . . Parts Self-Destructed . | . . . . . . . . . . . . . . . . . . . . . . . Prevented . | . . . . . . . . . . . . . . . . . . . . . . . Parts Restored 12 | . . . . . . . . . . . . . . . . . . . 12 . . . Faulty 12 | . . . . . . . . . . . . . . . . . . . 12 . . . Kills | -11 -10 -9 -9 -8 -8 -7 -7 -7 -7 -6 -6 -5 -4 -4 -3 -3 -2 -2 -2 -1 -1 -1 ------- Run | Yrd Mat Mat Sto Mat Gar Fac Gar Fac Gar Fac Gar Fac Fac Gar Res Tes Res Qua Frg Acc Com Ac0 Combat Hostiles Destroyed 506 | . 8 25 24 5 28 . 5 . 2 . 3 15 17 26 10 12 21 21 66 179 22 17 Melee 17 | . . . . 1 . . . . . . 2 . 12 2 . . . . . . . . Guns 66 | . 8 21 13 4 8 . 1 . . . . . 3 7 . . . 1 . . . . Cannons 267 | . . . . . . . . . 2 . 1 11 1 7 2 8 13 16 57 120 13 16 AOE 115 | . . 4 11 . 20 . 4 . . . . 2 . 3 . . 8 4 5 48 6 . Classes Destroyed 28 | 1 5 6 2 . 3 . . . . . . 2 . . . 2 . . 3 4 . . Worker 20 | . . 1 8 . . . . . . . . 3 3 . . . . . . 4 1 . Builder 30 | . . . 1 . . . . . . . . 2 . . . 3 2 2 1 19 . . Tunneler 8 | 5 2 . . . . . . . . . . . 1 . . . . . . . . . Hauler 16 | . 2 4 2 1 . . . . . . . 2 1 . 1 1 1 . . 1 . . Recycler 13 | . . 1 1 . . . . . . . . . . . . . 1 1 . 5 4 . Carrier 7 | . . . . . . . . . . . . . . . . . . . . 7 . . Mechanic 12 | . . 1 2 . . . . . . . . . . . . . . . 1 8 . . Operator 5 | . 1 . . . . . . . . 1 . 1 . . 1 . . . 1 . . . Drone 4 | . . . . . . . . . . . . . . . . . . . 2 . 1 1 Watcher 14 | . 1 2 . . . . . . . . . 1 . . . 2 . 1 2 3 2 . Swarmer 57 | . 3 . 3 4 10 . 4 . . . . . 6 14 . . 5 4 4 . . . Cutter 2 | . . . . . . . . . . . . 2 . . . . . . . . . . Saboteur 13 | . . . . . 2 . . . . . . . . . . . . . . 10 1 . Grunt 189 | . 5 18 14 1 9 . . . 2 . 1 3 4 5 4 1 15 9 14 77 7 . Brawler 16 | . . 1 1 . 1 . . . 1 . . . . . . . . . 3 8 1 . Duelist 15 | . . 1 . . . . . . . . . . . 2 . . . 1 1 9 1 . Protector 6 | . . . 1 . . . . . . . . . . . . . . . . 5 . . Researcher 2 | . . . . . . . . . . . . . . . . . . . 2 . . . Sentry 30 | . . 5 5 . 1 . . . . . 1 3 1 1 2 . 1 1 8 . 1 . Specialist 3 | . . . . . . . . . . . . 3 . . . . . . . . . . Hunter 43 | . . . . . 1 . . . . . . 1 1 3 2 5 . 5 3 21 1 . Programmer 57 | . . . . . 3 . 1 . . . 1 3 5 1 2 5 . . 6 27 3 . Q-Series 5 | . . . . . . . . . . . . . . . . 1 . 1 1 2 . . Behemoth 1 | . . . . . . . . . . . . . . . . . . . . 1 . . M Guard 2 | . . . . . . . . . . . . . . . . . . . . . 2 . Enhanced Grunt 11 | . . . . . . . . . . . . . . . . . . . . . . 11 Enhanced Sentry 1 | . . . . . . . . . . . . . . . . . . . . . . 1 Enhanced Hunter 3 | . . . . . . . . . . . . . . . . . . . . . . 3 Decapitator 18 | . . . . . . . . . . . . . . . . . . . 18 . . . Immortal 2 | . . . . . . . . . . . . . . . . . . . 2 . . . Combat Programmer 2 | . . . . . . . . . . . . . . . . . . . . . 2 . Investigator 3 | . . . . . . . . . . . . . . . . 1 . . . 2 . . Striker 9 | . . . . . . . . . . . . . . . . . . . . 8 1 . Executioner 10 | . . . . . . . . . . . . . . . . . . . . 10 . . Alpha 7 3 | . . . . . . . . . . . . . . . . . . . 2 . 1 . V-Series 2 | . . . . . . . . . . . . . . . . . . . 2 . . . Thug 2 | . . . 1 . 1 . . . . . . . . . . . . . . . . . Best Kill Streak 27 | 2 3 5 9 5 7 . 2 . 1 1 1 4 3 4 5 5 17 7 7 27 13 6 Combat Bots Only 22 | . 3 5 8 4 7 . 2 . 1 . 1 2 3 4 4 3 13 6 7 22 13 6 Max Kills in Single Turn 8 | 1 1 2 8 2 3 . 2 . 1 1 1 2 1 2 1 1 5 3 3 5 3 2 Gunslinging 1 | . . 1 . . 1 . . . . . . . . . . . . . . . . . Exploded 7 | . . 2 7 . 3 . 2 . . . . 1 . 2 . . 4 3 2 3 1 . Melee 1 | . . . . 1 . . . . . . 1 . 1 1 . . . . . . . . Uniques/NPCs Destroyed 7 | . . . . . . . . . . . . . . . . . . . . 1 2 4 DW-4LL (-1/Access) MAIN.C Shell (-1/Command) MAIN.C (-1/Command) A8 (-1/Access_0) A6 (-1/Access_0) A2 (-1/Access_0) A5 (-1/Access_0) Combat | -11 -10 -9 -9 -8 -8 -7 -7 -7 -7 -6 -6 -5 -4 -4 -3 -3 -2 -2 -2 -1 -1 -1 -------- Run | Yrd Mat Mat Sto Mat Gar Fac Gar Fac Gar Fac Gar Fac Fac Gar Res Tes Res Qua Frg Acc Com Ac0 Hostile Shots Fired 2169 | . 70 80 36 8 52 . 91 12 9 . 68 380 189 198 54 93 59 104 101 279 135 151 Missed 718 | . 24 19 10 1 17 . 21 4 3 . 41 121 61 72 17 27 22 39 38 98 31 52 Intercepted 17 | . . . . . . . . . . . . . . . . . . . . 1 16 . Hits 1451 | . 46 61 26 7 35 . 70 8 6 . 27 259 128 126 37 66 37 65 63 181 104 99 Melee 38 | . . 4 . . . . . . . . . 4 . 5 . . . 2 13 10 . . Projectile 1413 | . 46 57 26 7 35 . 70 8 6 . 27 255 128 121 37 66 37 63 50 171 104 99 AOE 12 | . . . . . 1 . . . . . . 1 1 . . . . . 4 . 5 . Critical Strikes 72 | . 1 2 2 1 2 . . . . . 1 8 6 4 1 2 1 4 11 13 7 6 Actively Blocked 50 | . . . . . . . . . . . . . 2 4 . 2 1 4 11 13 7 6 Part Disruptions 4 | . . . . . . . . . . . . . . . . 1 . . 1 2 . . Damage Taken 23941 | . 490 868 445 69 638 . 1380 76 114 . 432 5314 2549 2155 769 770 501 954 1308 2110 1536 1463 Core 3180 | . 56 101 56 . 80 . 183 23 58 . 48 902 489 288 108 112 57 47 203 126 57 186 Absorbed by Shields 7504 | . . . . . 4 . 49 . . . . . . 56 . 500 387 928 750 1992 1429 1409 Redirected to Shielding 220 | . . . . . . . . . . . . 34 . . . . . 79 . 107 . . Regen/Repaired (Parts) 167 | . . . 68 . . . . . . 14 . 18 . . 67 . . . . . . . Core Remaining (%) 67 | 100 77 . 60 . 85 . . . 62 . 94 9 . 32 . 83 . . 66 . . 71 Volleys Fired 1898 | 8 41 93 53 5 57 . 73 24 39 22 22 142 41 132 68 87 38 68 202 286 298 99 Largest 2 | 2 2 2 2 2 2 . 2 1 1 1 1 2 1 2 2 1 1 1 1 2 1 1 Hottest 240 | 40 40 60 60 38 60 . 113 5 40 40 43 134 65 155 240 130 130 130 200 240 140 140 Shots Fired 2230 | 16 82 183 105 10 80 . 94 24 39 22 22 165 41 148 70 87 38 68 202 342 293 99 Gun 857 | 16 82 175 96 10 47 . 49 . . . . 4 26 112 38 . . 1 26 . 175 . Cannon 1161 | . . . . . . . 8 . 17 4 7 143 7 33 30 81 33 66 174 341 118 99 Launcher 73 | . . 8 9 . 33 . 5 . 3 . 2 6 . 1 . . 5 1 . . . . Special 139 | . . . . . . . 32 24 19 18 13 12 8 2 2 6 . . 2 1 . . Kinetic 996 | 16 82 175 96 10 47 . 49 . 17 4 6 108 18 35 . . . 18 55 157 45 58 Thermal 832 | . . . . . . . 8 . . . 1 8 1 68 30 60 33 49 119 184 230 41 Explosive 73 | . . 8 9 . 33 . 5 . 3 . 2 6 . 1 . . 5 1 . . . . Electromagnetic 185 | . . . . . . . . . . . . 31 15 42 38 21 . . 20 . 18 . Entropic 6 | . . . . . . . . . . . . . . . . . . . 6 . . . Robot Hit Streak 58 | 5 6 14 33 5 8 . 24 6 9 7 9 12 6 16 12 15 15 8 16 26 48 58 Robot Miss Streak 10 | 2 4 2 3 1 1 . 2 3 4 2 2 9 3 3 2 3 2 4 10 5 3 2 Penetration Max 3 | . . . . . . . . . . . . . . . . . . 3 3 3 2 1 Secondary Targets 9 | . 2 2 . 3 2 . . . . . . . . . . . . . . . . . Max Gunslinging Chain 1 | . 1 1 . 1 1 . . . . . . . . . . . . . . . . . Capacitor 696 | . . . . . . . . . . . . . 14 108 57 81 33 49 121 131 62 40 Shots Hit Robots 1525 | 10 53 128 74 7 39 . 76 16 31 15 29 101 69 89 43 46 29 35 92 207 253 83 Core Hits 1439 | 5 23 63 63 6 59 . 15 . 14 . 5 47 30 43 15 17 31 76 217 557 100 53 Critical Kills 175 | . 1 2 . . . . . . . . . . . . 1 2 . 10 52 94 7 6 Critical Parts Destroyed 254 | . . 1 . . . . . . . . . 1 . . . . . 19 57 165 9 2 Critical Strikes 516 | . 1 3 . . . . . . 1 . 2 5 6 1 1 3 . 35 115 288 38 17 Burn 12 | . . . . . . . . . . . . . . 1 . . . . . . 11 . Meltdown 16 | . . . . . . . . . . . . . . . 1 2 . . 2 8 2 1 Destroy 455 | . 1 3 . . . . . . . . . 1 . . . . . 35 113 279 14 9 Blast 25 | . . . . . . . . . 1 . . 4 1 . . . . . . 1 11 7 Corrupt 2 | . . . . . . . . . . . . . 1 . . 1 . . . . . . Sever 6 | . . . . . . . . . . . 2 . 4 . . . . . . . . . Melee Attacks 203 | . . . 7 . 6 . 8 1 19 2 58 15 69 11 7 . . . . . . . Impact 7 | . . . 7 . . . . . . . . . . . . . . . . . . . Slashing 160 | . . . . . . . . . . 2 58 15 69 11 5 . . . . . . . Piercing 28 | . . . . . . . 8 1 19 . . . . . . . . . . . . . Sneak Attacks 22 | . . . 1 . 6 . . . . 1 . 6 5 . 3 . . . . . . . Combat Hostiles . | . . . . . . . . . . . . . . . . . . . . . . . Follow-up Attacks . | . . . . . . . . . . . . . . . . . . . . . . . Damage Inflicted 95092 | 135 708 2244 2890 147 2498 . 1557 . 1023 90 718 3902 2447 2872 1344 2948 4364 2260 4818 35062 14758 8307 Guns 11749 | 135 708 1744 1249 146 515 . 659 . . . . 106 438 1716 819 . . 30 384 . 3100 . Cannons 51790 | . . . . . . . 168 . 251 . 138 2487 186 735 434 2948 2641 1825 3549 19023 9098 8307 Explosions 27143 | . . 500 1525 . 1983 . 383 . 157 . . 635 . 356 . . 1723 405 885 16031 2560 . Melee 4308 | . . . 72 . . . 345 . 615 90 580 636 1814 65 91 . . . . . . . Ramming 102 | . . . 44 1 . . 2 . . . . 38 9 . . . . . . 8 . . Kinetic 22421 | 135 708 1744 1249 146 515 . 659 . 251 . 105 1775 430 431 . . . 322 901 3331 4835 4884 Thermal 56889 | . . . . . . . 168 . . . 33 181 . 1246 434 2359 2641 1533 3533 31630 9708 3423 Explosive 7760 | . . 500 1525 . 1983 . 383 . 157 . . 635 . 356 . . 1723 405 . 93 . . Electromagnetic 3474 | . . . . . . . . . . . . 637 194 774 819 589 . . 246 . 215 . Impact 72 | . . . 72 . . . . . . . . . . . . . . . . . . . Slashing 3276 | . . . . . . . . . . 90 580 636 1814 65 91 . . . . . . . Piercing 960 | . . . . . . . 345 . 615 . . . . . . . . . . . . . Entropic 138 | . . . . . . . . . . . . . . . . . . . 138 . . . Highest Corruption 14 | . . . 2 . 2 . 3 3 . . 1 10 . 8 2 4 . . 4 13 14 2 Average Corruption 5 | . . . 2 . 1 . 2 1 . . 1 3 . 7 1 3 . . 1 8 12 1 Corruption Purged 25 | . . . . . . . . 3 . . . . . . 2 4 . . 2 . 14 . Corruption Blocked 9 | . . . . . . . . . . . . . 5 4 . . . . . . . . Effects 235 | . . . 14 . 16 . 10 1 . . 1 9 . 30 3 7 . . 9 92 41 2 Message Errors 55 | . . . 4 . 5 . 3 . . . 1 2 . 7 . 1 . . 1 20 11 . Matter Fused 56 | . . . 2 . 3 . 1 1 . . . 1 . 10 1 2 . . 5 22 6 2 Heat Flow Errors 27 | . . . 3 . 2 . 4 . . . . 2 . 6 . . . . . 7 3 . Energy Discharges 23 | . . . 2 . 1 . 1 . . . . 2 . 2 2 2 . . . 9 2 . Parts Rejected 1 | . . . . . . . . . . . . . . 1 . . . . . . . . Parts Fused 3 | . . . . . . . . . . . . . . . . . . . . 1 2 . Data Loss (minor) 28 | . . . 1 . 4 . 1 . . . . 1 . 2 . 1 . . . 15 3 . Data Loss (major) 12 | . . . . . . . . . . . . 1 . 1 . 1 . . 1 6 2 . Misfires 8 | . . . . . 1 . . . . . . . . . . . . . 1 4 2 . Alerts 8 | . . . 2 . . . . . . . . . . . . . . . . 4 2 . Misdirections 2 | . . . . . . . . . . . . . . . . . . . . 1 1 . Weapon Failures 12 | . . . . . . . . . . . . . . 1 . . . . 1 3 7 . Overload Shots . | . . . . . . . . . . . . . . . . . . . . . . . Overflow Damage 10959 | . . 56 75 . 36 . 62 . . 55 . 188 143 73 43 476 280 157 210 7399 1210 496 Projectiles 6801 | . . . . . . . . . . . . 31 . 16 43 476 208 157 210 4380 784 496 Explosions 3770 | . . 56 18 . 36 . 62 . . . . 24 . 57 . . 72 . . 3019 426 . Melee 388 | . . . 57 . . . . . . 55 . 133 143 . . . . . . . . . Knockbacks 191 | . . . . . . . . . 1 . . 19 . . . . . 17 26 88 16 24 Impact . | . . . . . . . . . . . . . . . . . . . . . . . Kinetic 181 | . . . . . . . . . 1 . . 16 . . . . . 16 25 85 15 23 Secondary 10 | . . . . . . . . . . . . 3 . . . . . 1 1 3 1 1 Self-Inflicted Damage 397 | . . . 96 . 55 . 24 . . . . 78 . . . . 41 . 103 . . . Shots 11 | . . . 2 . 5 . 1 . . . . 1 . . . . 1 . 1 . . . Rammed 4 | . . . 3 . . . 1 . . . . . . . . . . . . . . . Targets Rammed 16 | . . . 3 1 . . 1 . . . . 9 1 . . . . . . 1 . . Kicked 11 | . . . . . . . . . . . . 9 1 . . . . . . 1 . . Crushed 1 | . . . . 1 . . . . . . . . . . . . . . . . . . Highest Temperature 476 | . 21 18 178 . 237 . 251 . 5 2 30 370 391 448 345 476 187 185 234 329 414 180 Average Temperature 93 | . 8 7 57 . 88 . 101 . 2 2 8 97 99 129 98 108 93 63 69 94 107 50 Received Heat Transfer 2704 | . 192 390 162 9 150 . 165 30 60 . 150 465 225 189 120 20 70 64 56 105 24 58 Effects 13 | . . . . . . . . . . . . 1 5 2 . . . . . 1 4 . Shutdowns 2 | . . . . . . . . . . . . . 1 . . . . . . . 1 . Energy Bleed 5 | . . . . . . . . . . . . 1 1 1 . . . . . 1 1 . Interference 4 | . . . . . . . . . . . . . 2 . . . . . . . 2 . Short Circuit 2 | . . . . . . . . . . . . . 1 1 . . . . . . . . Siege Activations . | . . . . . . . . . . . . . . . . . . . . . . . Martial Activations . | . . . . . . . . . . . . . . . . . . . . . . . Shielding Activations 2 | . . . . . . . . . . . . . . . . 2 . . . . . . Total Turns 9 | . . . . . . . . . . . . . . . . 9 . . . . . . Longest Duration 6 | . . . . . . . . . . . . . . . . 6 . . . . . . Robots Disrupted 1 | . . . . . . . . . . . . . . 1 . . . . . . . . Combat Hostiles 1 | . . . . . . . . . . . . . . 1 . . . . . . . . Robots Corrupted 23 | . . . . . . . . . . . . 2 1 5 7 3 . . 2 . 2 1 Combat Hostiles 22 | . . . . . . . . . . . . 2 1 5 7 3 . . 2 . 2 . Parts Fried 30 | . . . . . . . . . . . . . 2 5 6 11 . . 3 . 3 . Impact Corruptions 4 | . . . 2 . . . . . . . . . . . . . . . . . . 2 Robots Melted 26 | . . . . . . . . . . . . . . 2 1 2 . . 2 15 3 1 Combat Hostiles 21 | . . . . . . . . . . . . . . 2 1 1 . . 2 11 3 1 Parts Melted 82 | . . . . . 2 . . . . . . . 1 6 1 11 . . 3 49 5 4 Heat Transferred 29714 | . . . . . . . 88 . . . 24 250 . 1779 333 1335 1350 837 2146 16228 4642 702 Parts Sabotaged 4 | . . . . . . . . . . . . . . . . . . 2 . 2 . . Parts Stolen . | . . . . . . . . . . . . . . . . . . . . . . . Parts Stripped . | . . . . . . . . . . . . . . . . . . . . . . . Power Chain Reactions . | . . . . . . . . . . . . . . . . . . . . . . . Alert | -11 -10 -9 -9 -8 -8 -7 -7 -7 -7 -6 -6 -5 -4 -4 -3 -3 -2 -2 -2 -1 -1 -1 ------- Run | Yrd Mat Mat Sto Mat Gar Fac Gar Fac Gar Fac Gar Fac Fac Gar Res Tes Res Qua Frg Acc Com Ac0 Maximum Alert Level 5 | . . 1 3 1 5 4 3 2 4 2 3 4 2 4 2 1 2 3 5 5 5 . Low Security (%) 13 | 100 100 59 11 . . . . . . 21 17 17 . . . 93 42 . . . . . Level 1 4 | . . 40 7 100 9 . . . . 7 12 7 . 6 . 6 2 6 . . . . Level 2 22 | . . . 65 . 11 . 4 100 35 71 36 7 100 18 100 . 54 31 27 . . . Level 3 18 | . . . 14 . 10 62 95 . 47 . 33 58 . 65 . . . 62 23 . . . Level 4 9 | . . . . . 43 37 . . 17 . . 9 . 10 . . . . 29 14 . . Level 5 21 | . . . . . 25 . . . . . . . . . . . . . 19 12 93 . High Security 9 | . . . . . . . . . . . . . . . . . . . . 72 6 . Max Security . | . . . . . . . . . . . . . . . . . . . . . . . Sterilizations 1 | . . . . . . . . . . . . . . . . . . . . 1 . . Peak Influence 7302 | 10 111 310 858 380 2162 1134 1026 651 1147 608 796 1127 551 1179 693 366 664 936 1988 7302 5503 . Initial 4672 | . . . 126 275 260 1134 723 538 427 602 88 417 551 312 663 366 117 367 488 1186 4672 . Average 1263 | 1 17 176 548 327 1247 1084 907 564 820 458 509 744 480 768 607 137 383 735 1111 4178 5030 . Influence Increases 24434 | 25 287 760 1251 205 2072 . 603 293 920 210 798 2131 601 1077 378 615 687 846 2452 6560 1067 596 Destroy 0b10 Robot/C 11920 | . 160 500 660 120 800 . 360 140 420 80 260 800 340 540 200 260 420 420 1320 3680 440 . Destroy 0b10 Robot/NC 740 | 25 30 45 85 5 . . 10 10 15 5 . 65 25 5 10 30 20 20 45 225 65 . Destroy Leader 1798 | . 36 122 188 22 50 . 20 20 40 20 20 140 52 50 52 76 52 52 114 618 54 . Allied During Kill 1183 | . . . 137 58 158 . 34 30 96 6 138 490 . 2 6 8 . . . 12 8 . Trap Triggered on 0b10 50 | . . . . . . . . . . . . . . 50 . . . . . . . . Successful Hack 798 | . 59 58 47 . . . . 48 14 97 14 91 32 . 64 60 33 69 64 48 . . Disable Machine 930 | . . . 75 . . . . 15 15 . 45 135 15 60 . 135 15 75 180 60 105 . Anti-Garrison Action 1750 | . . . . . 950 . 150 . 250 . 200 . . 200 . . . . . . . . Destroy Structure 3445 | . 2 20 44 . 114 . 14 . 55 2 106 170 32 80 46 46 132 180 494 1147 180 581 Partial Spotted 105 | . . . . . . . . . 15 . 15 30 . . . . . . . 15 15 15 Lose Combat Pursuer 915 | . . 15 15 . . . 15 30 . . . 210 105 90 . . 15 30 135 255 . . Active Sensor Use 800 | . . . . . . . . . . . . . . . . . . . 100 500 200 . Influence Decreases 23868 | 25 287 460 898 458 310 1128 611 708 384 1230 129 1800 1282 344 906 1057 242 631 1343 1236 2780 5619 Entered New Map 14948 | . . . 174 378 140 1028 311 488 184 545 39 379 576 134 516 285 92 287 381 792 2630 5589 Time Decay 5050 | 25 172 420 514 50 . 100 . 190 . 170 . 491 556 . 380 452 120 334 642 374 60 . Lost Part 830 | . 20 40 . 10 10 . 80 10 . . 10 200 150 190 . . 30 10 20 30 10 10 Lost Ally 1356 | . . . 60 20 160 . 220 20 200 140 80 266 . 20 10 20 . . . 40 80 20 Purge Threat 1684 | . 95 . 150 . . . . . . 375 . 464 . . . 300 . . 300 . . . Squads Dispatched 141 | . 1 1 6 1 . . . 5 . 4 . 16 6 . 3 5 3 4 16 59 11 . Investigation 21 | . 1 1 1 . . . . 4 . 1 . 2 1 . . 1 1 . 1 5 2 . Extermination 22 | . . . . . . . . 1 . 1 . 3 3 . 2 3 . 2 5 2 . . Reinforcement 22 | . . . 2 . . . . . . 1 . 7 1 . 1 . 2 . 2 5 1 . Assault 69 | . . . 3 . . . . . . . . 1 1 . . 1 . 1 8 46 8 . Garrison 7 | . . . . 1 . . . . . 1 . 3 . . . . . 1 . 1 . . Intercept . | . . . . . . . . . . . . . . . . . . . . . . . Searches Triggered . | . . . . . . . . . . . . . . . . . . . . . . . Unchained Authorized 2 | . . . . . . . . . . . . . . . . . . . . 2 . . Construction Impeded 5 | . . . . . . . . . . . . 1 . . . . 1 . . 3 . . Haulers Reinforced 3 | . . . . . . . . . . . . 1 1 . . . . . . 1 . . Active Scanning Responses 8 | . . . . . . . . . . . . . . . . . . . 1 5 2 . Cargo Convoy Interrupts 1 | . . . . . . . . . . . . 1 . . . . . . . . . . Stealth | -11 -10 -9 -9 -8 -8 -7 -7 -7 -7 -6 -6 -5 -4 -4 -3 -3 -2 -2 -2 -1 -1 -1 --------- Run | Yrd Mat Mat Sto Mat Gar Fac Gar Fac Gar Fac Gar Fac Fac Gar Res Tes Res Qua Frg Acc Com Ac0 Distress Signals 56 | . 1 7 4 1 . . . 1 . . . 8 2 . 1 1 . 2 2 2 24 . Communications Jammed 9 | . . . . . . . . . . . . 9 . . . . . . . . . . Distress Signals 9 | . . . . . . . . . . . . 9 . . . . . . . . . . Times Spotted 747 | . 17 34 47 11 38 . 36 9 21 10 25 66 39 39 13 21 21 31 75 132 29 33 Peak Tracking Total 14 | . 5 4 10 6 5 . 6 4 6 3 7 10 8 8 4 3 7 7 9 14 9 4 Tactical Retreats 42 | . . 1 1 . . . 1 1 . . . 9 7 4 . . 1 2 5 10 . . ECM-based Alert Blocks 6 | . . . . . . . . . . . . . 6 . . . . . . . . . Traps | -11 -10 -9 -9 -8 -8 -7 -7 -7 -7 -6 -6 -5 -4 -4 -3 -3 -2 -2 -2 -1 -1 -1 ------- Run | Yrd Mat Mat Sto Mat Gar Fac Gar Fac Gar Fac Gar Fac Fac Gar Res Tes Res Qua Frg Acc Com Ac0 Traps Triggered 35 | . 2 1 5 . 5 . 4 . 4 . 1 1 1 3 1 . . . 5 1 1 . Indirectly . | . . . . . . . . . . . . . . . . . . . . . . . Trap Hack Attempts . | . . . . . . . . . . . . . . . . . . . . . . . Triggered . | . . . . . . . . . . . . . . . . . . . . . . . Disarmed . | . . . . . . . . . . . . . . . . . . . . . . . Reprogrammed . | . . . . . . . . . . . . . . . . . . . . . . . Reused 5 | . . . . . . . . . . . . . . 5 . . . . . . . . Traps Extracted . | . . . . . . . . . . . . . . . . . . . . . . . Installed 5 | . . . . . . . . . . . . . . 5 . . . . . . . . Triggered 5 | . . . . . . . . . . . . . . 5 . . . . . . . . Most Traps Carried 3 | . . . . . . . . . . . . . . 3 . . . . . . . . Machines | -11 -10 -9 -9 -8 -8 -7 -7 -7 -7 -6 -6 -5 -4 -4 -3 -3 -2 -2 -2 -1 -1 -1 ---------- Run | Yrd Mat Mat Sto Mat Gar Fac Gar Fac Gar Fac Gar Fac Fac Gar Res Tes Res Qua Frg Acc Com Ac0 Machines Disabled 108 | . . . 5 . 10 . 2 1 7 . 8 9 1 7 . 10 1 5 27 6 7 2 Max in Single Turn 2 | . . . 1 . 2 . 1 1 2 . 2 1 1 1 . 1 1 1 2 1 1 1 Garrison Access 7 | . . . . . . . . . . 1 . 1 2 . . . . 1 1 1 . . Garrison Relay 19 | . . . . . 7 . 2 . 4 . 4 . . 2 . . . . . . . . Phase Generator 2 | . . . . . 1 . . . 1 . . . . . . . . . . . . . Machines Repaired . | . . . . . . . . . . . . . . . . . . . . . . . Machines Dismantled 1 | . . . . . . . . . . . . . 1 . . . . . . . . . Machines Sabotaged . | . . . . . . . . . . . . . . . . . . . . . . . Overloaded Fab Kills . | . . . . . . . . . . . . . . . . . . . . . . . Hacking | -11 -10 -9 -9 -8 -8 -7 -7 -7 -7 -6 -6 -5 -4 -4 -3 -3 -2 -2 -2 -1 -1 -1 --------- Run | Yrd Mat Mat Sto Mat Gar Fac Gar Fac Gar Fac Gar Fac Fac Gar Res Tes Res Qua Frg Acc Com Ac0 Machines Accessed 124 | . 7 10 14 2 3 2 1 9 1 12 1 13 12 . 6 7 3 6 8 5 1 1 Terminals 78 | . 7 6 12 1 3 1 1 6 1 4 1 7 5 . 4 4 2 4 6 2 1 . Fabricators 11 | . . . . . . . . 1 . 2 . 1 2 . 1 2 1 . . 1 . . Repair Stations 8 | . . 2 1 . . . . . . 1 . 2 . . 1 1 . . . . . . Recycling Units 5 | . . . 1 . . . . . . 1 . 1 1 . . . . . . 1 . . Scanalyzers 9 | . . 2 . . . . . 1 . 2 . 1 1 . . . . 1 1 . . . Garrison Access 12 | . . . . 1 . 1 . 1 . 2 . 1 3 . . . . 1 1 1 . . Total Hacks 291 | . 34 26 40 3 5 3 2 20 1 24 1 31 25 . 12 15 7 13 15 9 1 4 Successful 158 | . 24 14 26 2 1 3 . 8 1 11 1 15 10 . 4 7 2 9 11 5 . 4 Failed 131 | . 9 11 14 1 4 . 2 12 . 13 . 16 15 . 8 8 5 4 4 4 1 . Catastrophic 25 | . . 1 . 1 1 . 2 3 . 3 . 4 5 . . . 1 2 1 . 1 . Database Lockouts 2 | . 1 1 . . . . . . . . . . . . . . . . . . . . Manual 138 | . 27 19 16 2 . . . 10 . 6 . 20 11 . 9 . 3 5 6 4 . . Terminals 192 | . 34 17 35 2 5 1 2 9 1 8 1 17 12 . 8 10 5 9 11 4 1 . Fabricators 24 | . . . . . . . . 2 . 4 . 2 6 . 3 4 2 . . 1 . . Repair Stations 17 | . . 4 3 . . . . . . 3 . 5 . . 1 1 . . . . . . Recycling Units 7 | . . . 2 . . . . . . 1 . 1 1 . . . . . . 2 . . Scanalyzers 23 | . . 5 . . . . . 3 . 6 . 2 2 . . . . 2 3 . . . Garrison Access 24 | . . . . 1 . 2 . 6 . 2 . 4 4 . . . . 2 1 2 . . Terminal Hacks 50 | . 13 1 11 . 1 1 . 1 1 . 1 3 . . 1 7 1 . 4 . . 4 Record 1 | . . . . . . . . . . . . 1 . . . . . . . . . . Part Schematic 2 | . 2 . . . . . . . . . . . . . . . . . . . . . Robot Analysis 3 | . 3 . . . . . . . . . . . . . . . . . . . . . Prototype ID Bank 5 | . 2 . 1 . . . . . . . . . . . . 2 . . . . . . Open Door 6 | . . . 5 . 1 . . . . . . . . . . . . . . . . . Open DSF 3 | . . . . . . 1 . 1 . . . 1 . . . . . . . . . . Branch Access Points 3 | . . 1 . . . . . . . . . . . . 1 . 1 . . . . . Emergency Access Points 3 | . 1 . . . . . . . 1 . 1 . . . . . . . . . . . Terminal Index 1 | . 1 . . . . . . . . . . . . . . . . . . . . . Scanalyzer Index 1 | . 1 . . . . . . . . . . . . . . . . . . . . . Alert Level 1 | . . . 1 . . . . . . . . . . . . . . . . . . . Unreport Threat 7 | . 1 . 1 . . . . . . . . 1 . . . 2 . . 2 . . . Maintenance Status 2 | . 1 . . . . . . . . . . . . . . . . . 1 . . . Hauler Manifests 2 | . 1 . 1 . . . . . . . . . . . . . . . . . . . Registered Components 1 | . . . 1 . . . . . . . . . . . . . . . . . . . Zone Layout 2 | . . . 1 . . . . . . . . . . . . 1 . . . . . . Proto ID Catalog 1 | . . . . . . . . . . . . . . . . . . . 1 . . . Protovariant Controls 2 | . . . . . . . . . . . . . . . . 2 . . . . . . Gate Test 138-A 1 | . . . . . . . . . . . . . . . . . . . . . . 1 Gate Test 138-B 1 | . . . . . . . . . . . . . . . . . . . . . . 1 Gate Test 138-C 2 | . . . . . . . . . . . . . . . . . . . . . . 2 Fabricator Hacks 4 | . . . . . . . . 1 . . . 1 2 . . . . . . . . . Load Schematic 1 | . . . . . . . . . . . . . 1 . . . . . . . . . Build 3 | . . . . . . . . 1 . . . 1 1 . . . . . . . . . Repair Station Hacks 8 | . . 2 3 . . . . . . 2 . 1 . . . . . . . . . . Scan Component 5 | . . 1 2 . . . . . . 1 . 1 . . . . . . . . . . Repair 2 | . . . 1 . . . . . . 1 . . . . . . . . . . . . Refit 1 | . . 1 . . . . . . . . . . . . . . . . . . . . Recycling Unit Hacks . | . . . . . . . . . . . . . . . . . . . . . . . Scanalyzer 14 | . . 4 . . . . . 1 . 3 . 1 . . . . . 2 3 . . . Insert Component 1 | . . 1 . . . . . . . . . . . . . . . . . . . . Analyze 1 | . . 1 . . . . . . . . . . . . . . . . . . . . Retrieve Study 12 | . . 2 . . . . . 1 . 3 . 1 . . . . . 2 3 . . . Garrison Access Hacks 15 | . . . . 1 . 2 . 1 . 2 . 1 3 . . . . 2 1 2 . . Unlock Access 5 | . . . . 1 . 1 . 1 . 1 . . 1 . . . . . . . . . Seal Access 7 | . . . . . . . . . . 1 . 1 2 . . . . 1 1 1 . . Coupler Status 3 | . . . . . . 1 . . . . . . . . . . . 1 . 1 . . Unauthorized Hacks 67 | . 11 7 12 1 . . . 4 . 4 . 8 5 . 3 . 1 5 3 3 . . Terminals 56 | . 11 7 11 1 . . . 2 . 2 . 6 4 . 2 . 1 5 3 1 . . Track 2 | . 1 . . . . . . . . . . 1 . . . . . . . . . . Assimilate 4 | . . 1 1 . . . . . . . . 1 . . 1 . . . . . . . Botnet 19 | . 3 . 2 . . . . 2 . 2 . 2 1 . . . 1 3 2 1 . . Disrupt 3 | . . . 1 . . . . . . . . 1 1 . . . . . . . . . Operators 4 | . 1 1 1 . . . . . . . . . . . 1 . . . . . . . Skim 24 | . 6 5 6 1 . . . . . . . 1 2 . . . . 2 1 . . . Fabricators 4 | . . . . . . . . . . 1 . 1 1 . 1 . . . . . . . Prioritize 1 | . . . . . . . . . . . . 1 . . . . . . . . . . Liberate 3 | . . . . . . . . . . 1 . . 1 . 1 . . . . . . . Repair Stations 1 | . . . . . . . . . . . . 1 . . . . . . . . . . Patch 1 | . . . . . . . . . . . . 1 . . . . . . . . . . Recycling Units 4 | . . . 1 . . . . . . 1 . . . . . . . . . 2 . . Reject 1 | . . . . . . . . . . . . . . . . . . . . 1 . . Mask 3 | . . . 1 . . . . . . 1 . . . . . . . . . 1 . . Scanalyzers . | . . . . . . . . . . . . . . . . . . . . . . . Garrison Access 2 | . . . . . . . . 2 . . . . . . . . . . . . . . Reprogram 1 | . . . . . . . . 1 . . . . . . . . . . . . . . Watchers 1 | . . . . . . . . 1 . . . . . . . . . . . . . . Data Cores Recovered 4 | . 1 . . . . . . . . 1 . 1 . . . . . . 1 . . . Used 1 | . 1 . . . . . . . . . . . . . . . . . . . . . Hacking Detections 106 | . 7 9 11 2 3 . 1 8 1 9 . 11 11 . 5 7 3 6 6 5 1 . Full Trace Events 9 | . . 1 . . 1 . 1 1 . 1 . 1 1 . . 1 1 . . . . . Feedback Events . | . . . . . . . . . . . . . . . . . . . . . . . Feedback Blocked . | . . . . . . . . . . . . . . . . . . . . . . . Robot Schematics Acquired . | . . . . . . . . . . . . . . . . . . . . . . . Robots Built . | . . . . . . . . . . . . . . . . . . . . . . . Authchips . | . . . . . . . . . . . . . . . . . . . . . . . Time 58 | . . . . . . . . 58 . . . . . . . . . . . . . . Total Robot Build Rating . | . . . . . . . . . . . . . . . . . . . . . . . Part Schematics Acquired 9 | . 2 1 . . . . . . . . . . . . . . . . 6 . . . Parts Built 2 | . . . . . . . . . . . . 1 1 . . . . . . . . . Authchips . | . . . . . . . . . . . . . . . . . . . . . . . Time 104 | . . . . . . . . . . . . 53 51 . . . . . . . . . Total Part Build Rating 7 | . . . . . . . . . . . . 6 1 . . . . . . . . . Part Studies Acquired 11 | . . 2 . . . . . . . 3 . 1 . . . . . 2 3 . . . Parts Repaired 2 | . . . 1 . . . . . . 1 . . . . . . . . . . . . Time 92 | . . . 32 . . . . . . 60 . . . . . . . . . . . . Parts Recycled . | . . . . . . . . . . . . . . . . . . . . . . . Recycled Matter . | . . . . . . . . . . . . . . . . . . . . . . . Retrieved Matter . | . . . . . . . . . . . . . . . . . . . . . . . Retrieved Components . | . . . . . . . . . . . . . . . . . . . . . . . Parts Scanalyzed 1 | . . 1 . . . . . . . . . . . . . . . . . . . . Part Schematics Acquired 1 | . . 1 . . . . . . . . . . . . . . . . . . . . Parts Damaged . | . . . . . . . . . . . . . . . . . . . . . . . Bothacking | -11 -10 -9 -9 -8 -8 -7 -7 -7 -7 -6 -6 -5 -4 -4 -3 -3 -2 -2 -2 -1 -1 -1 ------------ Run | Yrd Mat Mat Sto Mat Gar Fac Gar Fac Gar Fac Gar Fac Fac Gar Res Tes Res Qua Frg Acc Com Ac0 Used RIF Installer 5 | . . . . . 1 . 1 . 1 . 1 . . 1 . . . . . . . . Hotswap 1 | . . . . . . . . . . . 1 . . . . . . . . . . . Command Fork 2 | . . . . . . . 1 . . . . . . 1 . . . . . . . . Zone Cloak 1 | . . . . . . . . . 1 . . . . . . . . . . . . . Robots Hacked 82 | . . . . . . . 22 12 12 8 8 6 4 1 3 4 . . 1 1 . . Non-combat 28 | . . . . . . . . 9 . 6 . 3 4 . 3 3 . . . . . . Combat 54 | . . . . . . . 22 3 12 2 8 3 . 1 . 1 . . 1 1 . . Robot Hacks Applied 105 | . . . . . . . 24 15 14 14 8 10 7 1 4 6 . . 1 1 . . parse_system 9 | . . . . . . . 1 2 2 1 . . 1 . . . . . 1 1 . . generate_echo 3 | . . . . . . . . 2 . . . . 1 . . . . . . . . . find_chute 1 | . . . . . . . . . . 1 . . . . . . . . . . . . deconstruct_machine 1 | . . . . . . . . . . 1 . . . . . . . . . . . . ignore_repairs 3 | . . . . . . . . . . . . . 1 . 2 . . . . . . . map_walls 4 | . . . . . . . . 2 . . . . 2 . . . . . . . . . find_fabricator 1 | . . . . . . . . . . . . 1 . . . . . . . . . . drop_inventory 9 | . . . . . . . . 3 . 2 . 2 1 . . 1 . . . . . . find_station 1 | . . . . . . . . . . . . . . . 1 . . . . . . . purge_threat 6 | . . . . . . . . . . 3 . 3 . . . . . . . . . . find_terminals 1 | . . . . . . . . . . . . . . . . 1 . . . . . . locate_traps 1 | . . . . . . . . . . 1 . . . . . . . . . . . . block_reporting 1 | . . . . . . . . . . 1 . . . . . . . . . . . . summon_haulers 1 | . . . . . . . . . . . . 1 . . . . . . . . . . clear_recycling 1 | . . . . . . . . . . . . . . . . 1 . . . . . . map_route 3 | . . . . . . . . . . 2 . . 1 . . . . . . . . . report_analyses 2 | . . . . . . . . . . . . . . . . 2 . . . . . . find_garrison 1 | . . . . . . . . . . . . 1 . . . . . . . . . . link_fov 2 | . . . . . . . . 2 . . . . . . . . . . . . . . scatter_targeting 2 | . . . . . . . . . 1 . 1 . . . . . . . . . . . mark_system 1 | . . . . . . . . . 1 . . . . . . . . . . . . . amplify_resonance 10 | . . . . . . . 5 1 4 . . . . . . . . . . . . . reboot_system 8 | . . . . . . . 7 . 1 . . . . . . . . . . . . . overwrite_iff 5 | . . . . . . . 2 . 2 1 . . . . . . . . . . . . streamctrl_high 1 | . . . . . . . . . . . . . . 1 . . . . . . . . formatsys_low 2 | . . . . . . . . . . . . . . . 1 1 . . . . . . formatsys_high 25 | . . . . . . . 9 3 3 1 7 2 . . . . . . . . . . Relay Couplers Released 86 | . . . . . 32 . 13 . 16 . 15 1 . 9 . . . . . . . . Machine Destruction 82 | . . . . . 32 . 9 . 16 . 15 1 . 9 . . . . . . . . Programmers 4 | . . . . . . . 4 . . . . . . . . . . . . . . . Attached 32 | . . . . . . . 15 1 7 1 4 2 . . 1 . . 1 . . . . Fabnet Peak Effective % . | . . . . . . . . . . . . . . . . . . . . . . . Robots Rewired 22 | . . . . . 5 . . . 6 . 11 . . . . . . . . . . . Allies Hacked 3 | . . . . . . . . . 1 . . 1 . . 1 . . . . . . . Hacks Repelled . | . . . . . . . . . . . . . . . . . . . . . . . Allies | -11 -10 -9 -9 -8 -8 -7 -7 -7 -7 -6 -6 -5 -4 -4 -3 -3 -2 -2 -2 -1 -1 -1 -------- Run | Yrd Mat Mat Sto Mat Gar Fac Gar Fac Gar Fac Gar Fac Fac Gar Res Tes Res Qua Frg Acc Com Ac0 Total Allies 74 | . . . 12 . 5 . 11 7 11 2 19 3 . 1 2 1 . . . . . . Largest Group 15 | . . . 10 8 7 3 3 9 10 6 14 15 . 1 2 2 . . . . . . Highest-Rated Group 477 | . . . 88 69 85 48 48 170 212 192 451 477 . 49 81 76 . . . . . . Highest-Rated Ally 49 | . . . 31 16 31 16 32 32 32 32 47 49 . 49 45 40 . . . . . . Total Orders 37 | . . . . . 5 . . . 2 . . 4 . . 1 1 . . 1 1 9 13 STAY 5 | . . . . . 1 . . . 1 . . 2 . . . 1 . . . . . . FOLLOW 4 | . . . . . 1 . . . 1 . . 2 . . . . . . . . . . AID 1 | . . . . . . . . . . . . . . . 1 . . . . . . . EXPLORE 3 | . . . . . 3 . . . . . . . . . . . . . . . . . RETURN 24 | . . . . . . . . . . . . . . . . . . . 1 1 9 13 Ally Attacks 745 | . . . 50 40 87 . 88 27 89 21 61 128 . 5 . . . . . 19 66 64 Total Damage 20003 | . . . 636 295 904 . 1432 478 1410 796 1186 3331 . 181 . . . . . 1327 4597 3430 Kills 120 | . . . 12 1 12 . 13 9 20 4 10 29 . 1 . . . . . 2 1 6 Allies Corrupted 7 | . . . . . . . . . 2 . . . . . . . . . . 2 2 1 Allies Melted . | . . . . . . . . . . . . . . . . . . . . . . . Intel | -11 -10 -9 -9 -8 -8 -7 -7 -7 -7 -6 -6 -5 -4 -4 -3 -3 -2 -2 -2 -1 -1 -1 ------- Run | Yrd Mat Mat Sto Mat Gar Fac Gar Fac Gar Fac Gar Fac Fac Gar Res Tes Res Qua Frg Acc Com Ac0 Active Infowar (turns) 14683 | 38 626 335 . . . . . . . 192 618 1411 1129 15 253 . . 198 1347 3242 4720 559 Optics 6899 | . . . . . . . . . . 190 618 1411 721 . . . . . . 499 2901 559 Sensors 454 | . . . . . . . . . . . . . 439 15 . . . . . . . . A.S.S. 5587 | . . . . . . . . . . . . . . . . . . . 429 3242 1916 . Terrain 233 | . . . . . . . . . . . . . 233 . . . . . . . . . Structural 308 | . . . . . . . . . . . . . . . . . . . . 308 . . Seismic 2115 | 38 626 335 . . . . . . . . . . . . . . . 198 918 . . . T.N.C. 156 | . . . . . . . . . . . . 156 . . . . . . . . . . Machine Analysis 253 | . . . . . . . . . . . . . . . 253 . . . . . . . Triangulation 2799 | . . . . . . . . . . . . . . . . . . . . . 2496 303 Cloaking 522 | . . . . . . . . . . . . . . . . . . . 6 516 . . Jamming 336 | . . . . . . . . . . . . 336 . . . . . . . . . . ECM 72 | . . . . . . . . . . 2 . . 70 . . . . . . . . . Robot Analysis Total 3 | . 3 . . . . . . . . . . . . . . . . . . . . . Derelict Logs Recovered . | . . . . . . . . . . . . . . . . . . . . . . . Drone Launches 73 | . . . . . 5 . . . . . . . . . . . . . 1 6 23 38 Drone Recoveries 62 | . . . . . 3 . . . . . . . . . . . . . 1 4 18 36 Exploration | -11 -10 -9 -9 -8 -8 -7 -7 -7 -7 -6 -6 -5 -4 -4 -3 -3 -2 -2 -2 -1 -1 -1 ------------- Run | Yrd Mat Mat Sto Mat Gar Fac Gar Fac Gar Fac Gar Fac Fac Gar Res Tes Res Qua Frg Acc Com Ac0 Turns Passed 27906 | 227 937 1084 1406 106 2400 216 1141 383 671 358 618 1411 1629 1420 882 1129 256 748 2302 3242 4781 559 Spaces Moved 19721 | 131 613 509 720 47 907 89 651 862 1106 884 715 2022 1522 906 547 731 153 474 1240 1167 3367 358 Core 521 | 24 . . . . . . . . . . . 204 293 . . . . . . . . . Treads 1147 | 107 67 . . . 560 89 324 . . . . . . . . . . . . . . . Legs 9127 | . . . . . . . . . . . . 128 226 736 547 731 153 474 1240 1167 3367 358 Wheels 2225 | . 546 509 720 47 347 . . . . . . . 56 . . . . . . . . . Hover 1186 | . . . . . . . . . . . . 69 947 170 . . . . . . . . Flight 5515 | . . . . . . . 327 862 1106 884 715 1621 . . . . . . . . . . Fastest Speed 20 | 50 95 95 145 145 230 240 26 26 26 24 24 20 45 50 123 118 118 112 95 100 100 100 Average Speed 93 | 139 114 135 145 181 236 240 133 26 26 26 28 35 71 113 124 120 118 114 117 100 100 100 Slowest Speed 426 | 160 160 145 145 230 240 240 426 26 26 109 96 150 190 197 126 124 118 183 185 110 100 100 Overloaded Moves . | . . . . . . . . . . . . . . . . . . . . . . . Propulsion Burnouts . | . . . . . . . . . . . . . . . . . . . . . . . Robots Hopped 22 | . . . . . . . . 2 . 2 . 18 . . . . . . . . . . Potential Cave-ins 27 | . . . . . . . . . . . . . . . . . . 3 17 6 1 . Cave-ins Triggered . | . . . . . . . . . . . . . . . . . . . . . . . Teleports 3 | . . . . . . . . . . . . . . . . . . 1 1 . 1 . Exploration Rate (%) 45 | 5 70 56 93 6 96 3 58 28 82 30 62 39 41 72 15 64 8 55 31 18 79 31 Regions Visited 22 Branch Regions 6 Pre-discovered Areas 2 | . 1 . 1 . . . . . . . . . . . . . . . . . . . Known Exits Taken 13 | . 1 1 1 1 . 1 . 1 . 1 . 1 1 . 1 . 1 . 1 1 . . Unknown Exits Taken 4 | 1 . . . . . . . . . . . . . . . 1 . 1 . . 1 . Scrap Searched . | . . . . . . . . . . . . . . . . . . . . . . . Spaces Dug 348 | . . . 2 . 30 . 3 . 2 2 11 9 16 18 22 9 1 7 130 59 16 11 Terrain Destroyed 1570 | . . 17 47 . 180 . 4 . 56 2 21 83 20 28 23 23 56 68 272 451 91 128 Melee 46 | . . . 2 . . . . . 2 1 11 3 16 8 3 . . . . . . . Projectile 507 | . . . 2 . . . . . . 1 . 15 4 10 20 23 6 28 82 120 70 126 AOE 917 | . . 17 43 . 180 . 4 . 54 . 10 65 . 10 . . 50 21 167 275 21 . Terrain Rammed . | . . . . . . . . . . . . . . . . . . . . . . . Walls Destroyed . | . . . . . . . . . . . . . . . . . . . . . . . Machines Disabled . | . . . . . . . . . . . . . . . . . . . . . . . Actions | -11 -10 -9 -9 -8 -8 -7 -7 -7 -7 -6 -6 -5 -4 -4 -3 -3 -2 -2 -2 -1 -1 -1 --------- Run | Yrd Mat Mat Sto Mat Gar Fac Gar Fac Gar Fac Gar Fac Fac Gar Res Tes Res Qua Frg Acc Com Ac0 Total 27255 | 156 767 722 959 56 1092 90 825 1009 1431 986 1021 2500 1921 1248 730 984 223 648 1979 2879 4540 489 Wait 3627 | 3 68 83 127 1 25 . 27 94 129 56 104 219 154 90 36 35 18 35 217 1346 754 6 Move 19664 | 130 612 508 719 47 906 89 650 858 1105 879 714 1990 1522 905 546 730 152 473 1239 1166 3366 358 Hop 16 | . . . . . . . . 1 . 2 . 13 . . . . . . . . . . Pick Up 358 | 8 22 10 6 . 18 . 10 7 6 10 5 11 25 24 24 21 3 20 76 14 31 7 Fast Attach 204 | 6 2 4 4 1 2 . 11 2 5 4 4 21 28 29 5 21 3 7 29 7 9 . Attach 190 | 1 3 2 . 1 1 . 13 1 3 1 5 19 18 5 9 7 2 13 58 12 15 1 Detach 106 | . 1 1 . . . . 4 2 4 . 4 11 16 7 4 5 1 2 30 6 8 . Swap 280 | . 6 12 21 . 17 1 14 7 5 6 8 25 29 6 14 20 2 9 21 29 16 12 Drop 375 | . 12 9 10 . 17 . 8 11 5 4 2 24 13 31 17 38 4 21 98 12 33 6 Fire 1898 | 8 41 93 53 5 57 . 73 24 39 22 22 142 41 132 68 87 38 68 202 286 298 99 Melee 203 | . . . 7 . 6 . 8 1 19 2 58 15 69 11 7 . . . . . . . Ram 1 | . . . 1 . . . . . . . . . . . . . . . . . . . Kick 11 | . . . . . . . . . . . . 9 1 . . . . . . 1 . . Crush 4 | . . . 2 1 . . 1 . . . . . . . . . . . . . . . Escape Stasis 129 | . . . 8 . 37 . 6 . 45 . . . . 3 . 20 . . 9 . 1 . Rewire 178 | . . . 1 . 6 . . 1 66 . 95 . . . . . . . . . 9 . Trap 5 | . . . . . . . . . . . . . . 5 . . . . . . . . Miscellaneous 6 | . . . . . . . . . . . . 1 5 . . . . . . . . . Route ------- -11/Scrapyard -10/Materials (discovered 5 exits: *Mat x3 / *Min / Sub) -9/Materials (discovered 6 exits: *Mat x2 / *Min x2 / *Sto x2) -9/Storage (discovered 2 exits: *Mat / [Rec]) -8/Materials (discovered 3 exits: Fac x2 / Gar) -8/Garrison (discovered 3 exits: *Fac x3) -7/Factory (discovered 2 exits: Gar / DSF) -7/Garrison (discovered 3 exits: *Fac x3) -7/Factory (discovered 3 exits: *Fac / [*Low] / Gar) -7/Garrison (discovered 3 exits: *Fac x3) -6/Factory (discovered 2 exits: [Low] / Gar) -6/Garrison (discovered 2 exits: *Fac x2) -5/Factory (discovered 5 exits: *Fac x2 / *Upp x2 / [*Ext]) -4/Factory (discovered 4 exits: *Res x2 / [*Upp] / Gar) -4/Garrison (discovered 3 exits: *Res x3) -3/Research (discovered 2 exits: *Tes x2) -3/Testing -2/Research (discovered 2 exits: *Qua x2) -2/Quarantine (discovered 2 exits: [*Sec] / *Frg) -2/Protoforge -1/Access -1/Command (discovered 3 exits: [*Sur x2] / *Ac0) -1/Access_0 Subspace History --------- Turn | Location | Event 5 | -11/Scrapyard | Discovered new exit (range 15) 228 | -11/Scrapyard | Entered Materials 303 | -10/Materials | Build established: Mutant 674 | -10/Materials | Discovered new exit (range 13) 772 | -10/Materials | Discovered new exit (range 10) 971 | -10/Materials | Central database locked down 1048 | -10/Materials | Identified exit to Mines 1068 | -10/Materials | Discovered new exit (range 16) 1071 | -10/Materials | Learned location of 2 exits from Mines 1085 | -10/Materials | Learned location of Recycling (-9) 1090 | -10/Materials | Identified exit to Subcaves 1090 | -10/Materials | Identified exit to Materials 1106 | -10/Materials | Learned location of 3 exits from Materials 1165 | -10/Materials | Entered another Materials area 1165 | -9/Materials | Evolved 2 slots: Propulsion x1, Utility x1 1166 | -9/Materials | Identified exit to Storage 1166 | -9/Materials | Identified exit to Materials 1233 | -9/Materials | Central database locked down 1713 | -9/Materials | Discovered new exit (range 12) 2123 | -9/Materials | Identified exit to Mines 2249 | -9/Materials | Entered Storage 2316 | -9/Storage | Repaired Hvy. Assault Rifle+ 2350 | -9/Storage | Met a pair of Derelict thieves 2443 | -9/Storage | Destroyed 8 combat bots 2815 | -9/Storage | Discovered exit to Materials (range 15) 3049 | -9/Storage | First assault squad dispatched 3124 | -9/Storage | Discovered new exit (range 7) 3225 | -9/Storage | Assisted by bots powering up and referring to "LRC-V3" 3515 | -9/Storage | Build established: Commander-Mutant 3518 | -9/Storage | Learned Materials emergency access door positions 3524 | -9/Storage | Learned 2 Materials zone layouts 3541 | -9/Storage | Learned 8 Materials zone layouts 3570 | -9/Storage | Learned location of 1 exit from Recycling 3655 | -9/Storage | Entered Materials 3655 | -8/Materials | Accompanied by 8 allies 3655 | -8/Materials | Evolved 2 slots: Propulsion x1, Utility x1 3656 | -8/Materials | Identified exit to Factory 3752 | -8/Materials | Garrison activated, responded to threat 3760 | -8/Materials | Identified exit to Garrison 3761 | -8/Materials | Entered Garrison 3761 | -8/Garrison | Accompanied by 7 allies 3944 | -8/Garrison | Phase Generator disabled 3996 | -8/Garrison | Triggered checkpoint 4037 | -8/Garrison | Garrison Relay disabled 4052 | -8/Garrison | Garrison Relay disabled 4135 | -8/Garrison | Triggered checkpoint 4271 | -8/Garrison | Triggered checkpoint 4281 | -8/Garrison | Lost 3 allies 4283 | -8/Garrison | Triggered checkpoint 4301 | -8/Garrison | Triggered checkpoint 4324 | -8/Garrison | Destroyed 7 combat bots 4376 | -8/Garrison | Discovered exit to Factory (range 13) 4461 | -8/Garrison | Triggered checkpoint 4525 | -8/Garrison | Garrison Relay disabled 4526 | -8/Garrison | Garrison Relay disabled 4926 | -8/Garrison | Discovered exit to Factory (range 10) 4979 | -8/Garrison | Triggered checkpoint 5006 | -8/Garrison | Garrison Relay disabled 5087 | -8/Garrison | P-60 Hacker assimilated allied A5-UVB(g) 5089 | -8/Garrison | P-60 Hacker assimilated allied Mercenary 2e 5305 | -8/Garrison | Build established: Scavenger-Mutant 5345 | -8/Garrison | Triggered checkpoint 5423 | -8/Garrison | Garrison Relay disabled 5536 | -8/Garrison | Discovered exit to Factory (range 11) 5635 | -8/Garrison | Garrison Relay disabled 5976 | -8/Garrison | Installed Relay Interface Framework 6161 | -8/Garrison | Entered Factory 6161 | -7/Factory | Accompanied by 3 allies 6161 | -7/Factory | Evolved 2 slots: Utility x2 6276 | -7/Factory | Build established: Bothacker-Mutant 6281 | -7/Factory | Identified exit to DSF 6377 | -7/Factory | Identified exit to Garrison 6377 | -7/Factory | Entered Garrison 6377 | -7/Garrison | Accompanied by 3 allies 6500 | -7/Garrison | Triggered checkpoint 6503 | -7/Garrison | Lost 5 allies 6548 | -7/Garrison | Triggered checkpoint 6615 | -7/Garrison | Triggered checkpoint 6644 | -7/Garrison | Garrison Relay disabled 6724 | -7/Garrison | Discovered new exit (range 8) 7103 | -7/Garrison | Triggered checkpoint 7202 | -7/Garrison | Discovered new exit (range 10) 7286 | -7/Garrison | Spotted B-75 Beast 7352 | -7/Garrison | Allies destroyed B-75 Beast 7380 | -7/Garrison | Lost 6 parts (4n1u1w) 7420 | -7/Garrison | Garrison Relay disabled 7428 | -7/Garrison | Discovered new exit (range 8) 7457 | -7/Garrison | Expanded RIF knowledge: Command Fork 7518 | -7/Garrison | Entered Factory 7518 | -7/Factory | Accompanied by 3 allies 7523 | -7/Factory | Discovered new exit (range 4) 7574 | -7/Factory | Identified exit to Garrison 7604 | -7/Factory | Discovered new exit (range 14) 7615 | -7/Factory | Identified exit to DSF 7658 | -7/Factory | Build established: Bothacker-Sprinter 7901 | -7/Factory | Entered Garrison 7901 | -7/Garrison | Accompanied by 8 allies 7904 | -7/Garrison | Expanded RIF knowledge: Zone Cloak 7938 | -7/Garrison | Triggered checkpoint 7980 | -7/Garrison | Garrison Relay disabled 8014 | -7/Garrison | Lost 3 allies 8049 | -7/Garrison | Phase Generator disabled 8119 | -7/Garrison | Triggered checkpoint 8131 | -7/Garrison | Triggered checkpoint 8139 | -7/Garrison | Triggered checkpoint 8157 | -7/Garrison | Triggered checkpoint 8198 | -7/Garrison | Discovered new exit (range 15) 8202 | -7/Garrison | Spotted B-75 Beast 8202 | -7/Garrison | Spotted B-75 Beast 8205 | -7/Garrison | Lost 5 allies 8219 | -7/Garrison | Garrison Relay disabled 8247 | -7/Garrison | Triggered checkpoint 8333 | -7/Garrison | Garrison Relay disabled 8397 | -7/Garrison | Discovered new exit (range 6) 8427 | -7/Garrison | Triggered checkpoint 8429 | -7/Garrison | Garrison Relay disabled 8435 | -7/Garrison | Triggered checkpoint 8446 | -7/Garrison | Discovered new exit (range 10) 8451 | -7/Garrison | Triggered checkpoint 8466 | -7/Garrison | Lost 3 allies 8572 | -7/Garrison | Entered Factory 8572 | -6/Factory | Accompanied by 6 allies 8572 | -6/Factory | Evolved 2 slots: Propulsion x1, Utility x1 8591 | -6/Factory | Discovered new exit (range 107) 8650 | -6/Factory | Repaired Imp. VTOL Module 8923 | -6/Factory | Spotted B-75 Beast 8925 | -6/Factory | Identified exit to Garrison 8930 | -6/Factory | Entered Garrison 8934 | -6/Garrison | Triggered checkpoint 9004 | -6/Garrison | Triggered checkpoint 9005 | -6/Garrison | Garrison Relay disabled 9030 | -6/Garrison | Expanded RIF knowledge: Hotswap 9116 | -6/Garrison | Triggered checkpoint 9122 | -6/Garrison | Triggered checkpoint 9134 | -6/Garrison | Triggered checkpoint 9175 | -6/Garrison | Discovered new exit (range 12) 9238 | -6/Garrison | Triggered checkpoint 9239 | -6/Garrison | Discovered new exit (range 12) 9246 | -6/Garrison | Triggered checkpoint 9262 | -6/Garrison | Garrison Relay disabled 9305 | -6/Garrison | Lost 5 allies 9341 | -6/Garrison | Garrison Relay disabled 9365 | -6/Garrison | Garrison Relay disabled 9548 | -6/Garrison | Entered Factory 9548 | -5/Factory | Accompanied by 14 allies 9548 | -5/Factory | Evolved 2 slots: Power x1, Propulsion x1 9549 | -5/Factory | Identified exit to DSF 9749 | -5/Factory | Build established: Commander-Sprinter 9813 | -5/Factory | Discovered new exit (range 4) 9814 | -5/Factory | Identified exit to Upper Caves 9873 | -5/Factory | Discovered new exit (range 17) 9878 | -5/Factory | Identified exit to Factory 9888 | -5/Factory | Discovered exit to Upper Caves (range 3) 9979 | -5/Factory | Lost 4 allies 10088 | -5/Factory | Fabricated Smartbomb Launcher (x1) 10101 | -5/Factory | P-70 Sage assimilated allied Soldier 5g 10103 | -5/Factory | P-70 Sage assimilated allied Soldier 5c 10213 | -5/Factory | Lost 4 allies 10238 | -5/Factory | Discovered exit to Factory (range 21) 10323 | -5/Factory | Cargo convoy interrupted 10355 | -5/Factory | Lost 6 parts (2p2n2w) 10404 | -5/Factory | Found Exp. Core Analyzer 10417 | -5/Factory | Discovered new exit (range 19) 10434 | -5/Factory | Lost 3 parts (2n1u) 10448 | -5/Factory | First assault squad dispatched 10483 | -5/Factory | Core integrity fell below 50% 10653 | -5/Factory | Build established: Mutant 10713 | -5/Factory | Core integrity fell below 20% 10755 | -5/Factory | Lost 3 parts (1p1n1w) 10929 | -5/Factory | System corruption reached 10% 10959 | -5/Factory | Entered another Factory area 10959 | -4/Factory | Evolved 2 slots: Utility x2 11170 | -4/Factory | Fabricated Hcp. Storage Unit? 11253 | -4/Factory | Lost 6 parts (1p4n1u) 11649 | -4/Factory | Found Quantum Capacitor 11775 | -4/Factory | Discovered new exit (range 2) 12209 | -4/Factory | First assault squad dispatched 12257 | -4/Factory | Discovered new exit (range 9) 12362 | -4/Factory | Discovered new exit (range 45) 12435 | -4/Factory | Lost 4 parts (1p2n1w) 12578 | -4/Factory | Spotted B-86 Titan 12588 | -4/Factory | Identified exit to Garrison 12588 | -4/Factory | Entered Garrison 12638 | -4/Garrison | Spotted B-86 Titan 12638 | -4/Garrison | Triggered checkpoint 12641 | -4/Garrison | Triggered checkpoint 12689 | -4/Garrison | Lost 3 parts (1p2n) 12726 | -4/Garrison | Core integrity fell below 50% 12912 | -4/Garrison | Lost 9 parts (1p3n2u3w) 13221 | -4/Garrison | Triggered checkpoint 13407 | -4/Garrison | Build established: Scavenger-Mutant 13432 | -4/Garrison | Triggered checkpoint 13568 | -4/Garrison | Discovered new exit (range 8) 13711 | -4/Garrison | Discovered new exit (range 12) 13724 | -4/Garrison | Expanded RIF knowledge: Command Fork 13748 | -4/Garrison | Triggered checkpoint 13759 | -4/Garrison | Garrison Relay disabled 13986 | -4/Garrison | Discovered new exit (range 16) 14008 | -4/Garrison | Entered Research 14008 | -3/Research | Evolved 2 slots: Propulsion x1, Utility x1 14135 | -3/Research | Identified exit to Testing 14215 | -3/Research | Build established: Mutant 14231 | -3/Research | Found Prototype Device 14231 | -3/Research | Identified Exp. Shield Generator 14532 | -3/Research | Build established: Scavenger-Mutant 14783 | -3/Research | Found Prototype Launcher 14783 | -3/Research | Identified Adv. Micro-nuke Launcher 14787 | -3/Research | Found Adv. Micro-nuke Launcher 14890 | -3/Research | Entered Testing 14890 | -3/Testing | Accompanied by 1 ally 14950 | -3/Testing | Protovariant out of control (PL-18ZMD3XI3K) 14950 | -3/Testing | Unleashed a protovariant (PL-18ZMD3XI3K) 15104 | -3/Testing | Found Prototype Ballistic Cannon 15104 | -3/Testing | Identified Perforator 15138 | -3/Testing | Discovered new exit (range 16) 15182 | -3/Testing | Found Prototype Device 15182 | -3/Testing | Identified AEGIS Remote Shield 15233 | -3/Testing | Found Prototype Energy Gun 15233 | -3/Testing | Identified Tachyon Dispersion Ray 15308 | -3/Testing | Found Prototype Energy Cannon 15308 | -3/Testing | Identified Null Cannon 15329 | -3/Testing | Build established: Mutant 15464 | -3/Testing | Found Prototype Ballistic Cannon 15464 | -3/Testing | Identified Omega Cannon 15497 | -3/Testing | Found Exp. Core Analyzer 15507 | -3/Testing | Found Prototype Processor 15507 | -3/Testing | Identified Exp. Melee Analysis Suite 15516 | -3/Testing | Spotted Investigator 15517 | -3/Testing | Scanned by Researcher 15572 | -3/Testing | Destroyed Investigator 15582 | -3/Testing | Found Prototype Launcher 15582 | -3/Testing | Identified Containment Facilitator 15708 | -3/Testing | Found Prototype Energy Cannon 15708 | -3/Testing | Identified Imp. Potential Cannon 15711 | -3/Testing | Found Prototype Energy Cannon 15711 | -3/Testing | Identified Potential Cannon 15756 | -3/Testing | Found Prototype Ballistic Gun 15756 | -3/Testing | Identified Hyp. Multirail 15884 | -3/Testing | Found Prototype Device 15884 | -3/Testing | Identified Femtoactuators 16019 | -3/Testing | Entered Research 16019 | -2/Research | Evolved 2 slots: Power x1, Utility x1 16035 | -2/Research | Identified exit to Quarantine 16161 | -2/Research | Found Quantum Capacitor 16164 | -2/Research | Found Quantum Capacitor 16173 | -2/Research | Destroyed 13 combat bots 16275 | -2/Research | Entered Quarantine 16332 | -2/Quarantine | Found Alien Artifact 16525 | -2/Quarantine | First assault squad dispatched 16549 | -2/Quarantine | Garrison activated, responded to threat 16662 | -2/Quarantine | Spotted Alpha 7 16759 | -2/Quarantine | Found Alien Artifact 16759 | -2/Quarantine | Identified Dimensional Node Initializer 16759 | -2/Quarantine | Initialized slip node 16765 | -2/Quarantine | Found Dimensional Node Initializer 16772 | -2/Quarantine | Found Alien Artifact 16784 | -2/Quarantine | Found Alien Artifact 16786 | -2/Quarantine | Found Alien Artifact 16807 | -2/Quarantine | Build established: Scavenger-Mutant 16807 | -2/Quarantine | Found Alien Artifact 16807 | -2/Quarantine | Identified Hpw. Transdimensional Reconstructor (x3) 16807 | -2/Quarantine | Warped through subspace to slip node 16810 | -2/Quarantine | Found Dimensional Node Initializer 16933 | -2/Quarantine | Spotted Fortress 17017 | -2/Quarantine | Discovered new exit (range 6) 17017 | -2/Quarantine | Discovered new exit (range 6) 17023 | -2/Quarantine | Entered Protoforge 17120 | -2/Protoforge | Superfortress began startup sequence 17242 | -2/Protoforge | Spotted B-90 Cyclops 17341 | -2/Protoforge | Discovered new exit (range 12) 17357 | -2/Protoforge | Initialized slip node 17523 | -2/Protoforge | First assault squad dispatched 17636 | -2/Protoforge | Found Prototype Energy Gun 17636 | -2/Protoforge | Identified Cep. Variable Chargecaster 17678 | -2/Protoforge | Additional patrols dispatched to research labs 17720 | -2/Protoforge | Identified Transdimensional Reconstructor 17720 | -2/Protoforge | Forge Plexus network access discovered 17730 | -2/Protoforge | Spotted Decapitator 17730 | -2/Protoforge | Destroyed Decapitator 17730 | -2/Protoforge | Destroyed Decapitator 17733 | -2/Protoforge | Spotted Decapitator 17741 | -2/Protoforge | Destroyed Decapitator 17796 | -2/Protoforge | Found Cep. NT7 Matterbank 17804 | -2/Protoforge | Found Crosscalibrator 17806 | -2/Protoforge | Spotted Decapitator 17806 | -2/Protoforge | Spotted Decapitator 17806 | -2/Protoforge | Spotted Decapitator 17806 | -2/Protoforge | Spotted Decapitator 17808 | -2/Protoforge | Destroyed Decapitator 17808 | -2/Protoforge | Destroyed Decapitator 17808 | -2/Protoforge | Destroyed Decapitator 17810 | -2/Protoforge | Destroyed Decapitator 17881 | -2/Protoforge | Found Cep. Antigrav Storage Unit 17885 | -2/Protoforge | Found Cep. Chromion Battery 17911 | -2/Protoforge | Spotted Decapitator 17911 | -2/Protoforge | Spotted Immortal 17911 | -2/Protoforge | Spotted Immortal 17912 | -2/Protoforge | Spotted Decapitator 17914 | -2/Protoforge | Spotted Decapitator 17915 | -2/Protoforge | Spotted Decapitator 17916 | -2/Protoforge | Destroyed Decapitator 17919 | -2/Protoforge | Destroyed Decapitator 17919 | -2/Protoforge | Destroyed Decapitator 17922 | -2/Protoforge | Destroyed Decapitator 17925 | -2/Protoforge | Found Cep. Concussive Dispersal Blaster 17942 | -2/Protoforge | Spotted Decapitator 17942 | -2/Protoforge | Spotted Decapitator 17942 | -2/Protoforge | Spotted Decapitator 17946 | -2/Protoforge | Destroyed Decapitator 17946 | -2/Protoforge | Destroyed Decapitator 17949 | -2/Protoforge | Destroyed Decapitator 18033 | -2/Protoforge | Found Cep. Plasma Driver 18041 | -2/Protoforge | Spotted V872-k 18069 | -2/Protoforge | Destroyed V872-k 18074 | -2/Protoforge | Found Faulty Cep. Plasma Driver 18077 | -2/Protoforge | Found Faulty Cep. Plasma Driver 18083 | -2/Protoforge | Found Prototype Device 18083 | -2/Protoforge | Identified Cep. Antimissile System 18136 | -2/Protoforge | Found Cep. Lightning Penetrator 18140 | -2/Protoforge | Found Faulty Cep. Miniperforator 18144 | -2/Protoforge | Found Faulty Cep. Miniperforator 18149 | -2/Protoforge | Found Cep. Disintegration Ray 18249 | -2/Protoforge | Destroyed Immortal 18256 | -2/Protoforge | Destroyed Immortal 18310 | -2/Protoforge | Found Faulty Cep. Heavy Railcannon 18325 | -2/Protoforge | Found Faulty Cep. Heavy Railcannon 18391 | -2/Protoforge | Found Exp. Active Sensor Suite 18476 | -2/Protoforge | Destroyed 7 combat bots 18555 | -2/Protoforge | Destroyed Decapitator 18561 | -2/Protoforge | Spotted Decapitator 18568 | -2/Protoforge | Destroyed Decapitator 18572 | -2/Protoforge | Spotted V285-b 18620 | -2/Protoforge | Found Faulty Cep. Biometal Exoskeleton 18656 | -2/Protoforge | Found Faulty Cep. Biometal Exoskeleton 18797 | -2/Protoforge | Spotted Decapitator 18797 | -2/Protoforge | Spotted Decapitator 18812 | -2/Protoforge | Destroyed Decapitator 18812 | -2/Protoforge | Destroyed Decapitator 18884 | -2/Protoforge | Found Faulty Cep. Zero-point Core 18933 | -2/Protoforge | Found Cep. Hypertargeting System 18937 | -2/Protoforge | Found Faulty Cep. Zero-point Core 19091 | -2/Protoforge | Found Cep. Weapon Articulator 19093 | -2/Protoforge | Found Exp. Kinecellerator 19098 | -2/Protoforge | Found Mni. Quantum Capacitor 19152 | -2/Protoforge | Spotted V492-z 19156 | -2/Protoforge | Destroyed V492-z 19206 | -2/Protoforge | Destroyed AP7-3 19209 | -2/Protoforge | Destroyed AP7-3 19245 | -2/Protoforge | Found Faulty Cep. Impact Drone Bay 19249 | -2/Protoforge | Found Faulty Cep. Impact Drone Bay 19258 | -2/Protoforge | Found Cld. Directed Potential Cannon 19262 | -2/Protoforge | Found Faulty Cld. Directed Potential Cannon 19310 | -2/Protoforge | Found Cep. Cloak Mesh 19318 | -2/Protoforge | Warped through subspace to slip node 19319 | -2/Protoforge | Found Cep. Cloak Mesh 19324 | -2/Protoforge | Identified exit to Access 19325 | -2/Protoforge | Entered Access 19325 | -1/Access | Evolved 2 slots: Power x1, Weapon x1 19511 | -1/Access | Unchained authorized (DW-4LL) 19575 | -1/Access | First assault squad dispatched 19830 | -1/Access | DW-4LL burst out of a wall 19843 | -1/Access | Destroyed DW-4LL 19854 | -1/Access | Spotted B-99 Colossus 19926 | -1/Access | Destroyed B-99 Colossus 20010 | -1/Access | Destroyed 8 combat bots 20069 | -1/Access | Garrison activated, responded to threat 20107 | -1/Access | Unchained authorized (GL-D0S) 20201 | -1/Access | High security lockdown imminent 20217 | -1/Access | Found Prototype Ballistic Gun 20217 | -1/Access | Identified Multirail 20239 | -1/Access | Build established: Generator-Tank 20281 | -1/Access | High security lockdown engaged 20383 | -1/Access | Destroyed Striker 20432 | -1/Access | Destroyed 14 combat bots 20546 | -1/Access | Destroyed 18 combat bots 20579 | -1/Access | Destroyed Executioner 20629 | -1/Access | Destroyed Executioner 20631 | -1/Access | Spotted Investigator 20638 | -1/Access | Destroyed Investigator 20662 | -1/Access | Spotted Investigator 20667 | -1/Access | Destroyed Investigator 20718 | -1/Access | Destroyed 22 combat bots 20842 | -1/Access | Spotted Executioner 20848 | -1/Access | Destroyed Executioner 20869 | -1/Access | Destroyed 8 combat bots 21139 | -1/Access | Spotted Executioner 21139 | -1/Access | Spotted Executioner 21139 | -1/Access | Spotted Striker 21141 | -1/Access | Destroyed Executioner 21144 | -1/Access | Destroyed Executioner 21145 | -1/Access | Destroyed Striker 21178 | -1/Access | Destroyed Executioner 21274 | -1/Access | System corruption reached 10% 21474 | -1/Access | Spotted Executioner 21474 | -1/Access | Spotted Striker 21476 | -1/Access | Destroyed Executioner 21477 | -1/Access | Destroyed Striker 21503 | -1/Access | Sterilization system engaged 21521 | -1/Access | Destroyed 13 combat bots 21546 | -1/Access | Discovered new exit (range 8) 21803 | -1/Access | Ambient heat levels rising (+10) 21823 | -1/Access | Destroyed Executioner 21823 | -1/Access | Spotted Striker 21825 | -1/Access | Destroyed Striker 21832 | -1/Access | Spotted Striker 21832 | -1/Access | Spotted Striker 21833 | -1/Access | Destroyed Striker 21842 | -1/Access | Destroyed Striker 21879 | -1/Access | Destroyed 14 combat bots 21948 | -1/Access | Destroyed Striker 21953 | -1/Access | Ambient heat levels rising (+10) 21982 | -1/Access | Found Prototype Processor 21982 | -1/Access | Identified Exp. Targeting Computer 22103 | -1/Access | Ambient heat levels rising (+10) 22154 | -1/Access | Spotted Executioner 22156 | -1/Access | Destroyed Executioner 22215 | -1/Access | Spotted Executioner 22217 | -1/Access | Destroyed Executioner 22217 | -1/Access | Spotted Striker 22222 | -1/Access | Destroyed Striker 22243 | -1/Access | Destroyed 17 combat bots 22253 | -1/Access | Ambient heat levels rising (+10) 22379 | -1/Access | Build established: Generator-Skirmisher 22403 | -1/Access | Ambient heat levels rising (+10) 22468 | -1/Access | Identified exit to Command 22553 | -1/Access | Ambient heat levels rising (+10) 22567 | -1/Access | Entered Command 22695 | -1/Command | High security lockdown imminent 22699 | -1/Command | Spotted B-99 Colossus 22726 | -1/Command | Spotted Alpha 7 22731 | -1/Command | Destroyed Alpha 7 22736 | -1/Command | Spotted M Guard 22740 | -1/Command | Spotted M Guard 22740 | -1/Command | Spotted Combat Programmer 22754 | -1/Command | Spotted Combat Programmer 22755 | -1/Command | Destroyed Combat Programmer 22770 | -1/Command | Destroyed Combat Programmer 22775 | -1/Command | High security lockdown engaged 22791 | -1/Command | Destroyed M Guard 22839 | -1/Command | Destroyed M Guard 22839 | -1/Command | All MAIN.C guards destroyed 22858 | -1/Command | Found AEGIS Remote Shield 22905 | -1/Command | Spotted Striker 22916 | -1/Command | Destroyed Striker 22941 | -1/Command | Destroyed 13 combat bots 22971 | -1/Command | Met MAIN.C 22993 | -1/Command | 0b10 Conduit disabled 22996 | -1/Command | Allies destroyed MAIN.C Shell 22997 | -1/Command | MAIN.C activated Command garrisons 23034 | -1/Command | Lost 5 allies 23085 | -1/Command | Destroyed MAIN.C 23103 | -1/Command | Identified Subatomic Replicator 23103 | -1/Command | Discovered new exit (range 56) 23103 | -1/Command | Discovered new exit (range 69) 23103 | -1/Command | Extracted map data and part IDs from MAIN.C's data core 23243 | -1/Command | Found Exp. System Purifier 23397 | -1/Command | Build established: Generator-Gunner 24252 | -1/Command | Found Adv. Particle Accelerator 24254 | -1/Command | Found Exp. Core Analyzer 24258 | -1/Command | Found Zero-point Reactor 24261 | -1/Command | Found Zero-point Reactor 24282 | -1/Command | Found Exp. Targeting Computer 27095 | -1/Command | Found Imp. Powered Armor 27340 | -1/Command | Warped through subspace to slip node 27340 | -1/Command | Discovered new exit (range 4) 27348 | -1/Command | Entered Access_0 27350 | -1/Access_0 | Met Architect 27355 | -1/Access_0 | Architect warped through subspace 27364 | -1/Access_0 | Destroyed A8 27404 | -1/Access_0 | Architect warped through subspace 27446 | -1/Access_0 | Architect warped through subspace 27453 | -1/Access_0 | Subspace Access Node disabled 27486 | -1/Access_0 | Architect warped through subspace 27524 | -1/Access_0 | A6 warped into view 27525 | -1/Access_0 | Architect warped through subspace 27538 | -1/Access_0 | Allies destroyed A6 27540 | -1/Access_0 | Architect warped through subspace 27567 | -1/Access_0 | Architect warped through subspace 27598 | -1/Access_0 | Architect warped through subspace 27636 | -1/Access_0 | Architect warped through subspace 27675 | -1/Access_0 | Architect warped through subspace 27683 | -1/Access_0 | Allies destroyed A2 27691 | -1/Access_0 | Extracted Singularity Gate Test 138-C access codes from A2's data core 27713 | -1/Access_0 | A5 warped into view 27719 | -1/Access_0 | Architect warped through subspace 27733 | -1/Access_0 | Destroyed A5 27768 | -1/Access_0 | Architect warped through subspace 27796 | -1/Access_0 | Found Exp. Powered Armor 27798 | -1/Access_0 | Found Exp. Powered Armor 27825 | -1/Access_0 | Architect warped through subspace 27895 | -1/Access_0 | Architect warped through subspace 27907 | -1/Access_0 | Started Test 138-B, establishing a local singularity 27907 | -1/Access_0 | Started Test 138-C, cascade imminent 27907 | *** | Destroyed Tau Ceti IV! Last Messages --------------- >>Gate Test 138-A Running Singularity Gate diagnostics... All systems nominal. >>Gate Test 138-B Preparing Singularity Gate activation... Stable singularity established. 27907_ Connecting with Gate Controls... >>Gate Test 138-C Initiating Test 138-C... Warning: Experimental formulas incomplete. Potential effects include instability. Repeat command to confirm test. >>Gate Test 138-C Initiating Test 138-C... Applying incomplete calculations.... INSTABILITY DETECTED, CASCADE IMMINENT. [Achievement: 75k Club] [Achievement: 100k Club] [Achievement: Stardust] [Achievement: Victory By Combat] Map ----- +----------------------------------------------------+ | ????????????###??????????????????????????????????# | | ???????????# ##?????????????????????????????????# | | ?????????## ??????????????????????????????????# | | ????????## #???????????????????????????????????# | | ????????# #?????????????##????###???###????????# | | ????????# ###????????????# #?###"#####"###?????## | | ????##### ??????????????# ##"" """"" ""#?????# | | ??###=! ##################"#" "####### | | ?##"]!!! !! ! | | ?# "%!= ] = ! ! | | ??#"*!* ########### !* """###" ""####"" | | ??### #?????????# ####?#"" " " ##????" | | ????## ##????###### ########"""#"#"###?????# | | ????## #??????""""" """""??##=######??????# | | ????# ####???#"""" """"#???###???????????# # | | ????## #??##" "##????????????????##? | | ?????## ## #??#"" ""#??????????????????? | | ??????# #??#??#"" ""#??????????????????? | | ??????# ## #??##" "##??????????????????? | | ??????# #???#" "#???????????????????? | | ??????# ####???#" "#???????????????????? | | ??????# #??????#" "#???????????????????? | | ??????# #????###" "##??????????????????? | | ??????# #????#;"" ""#??????????????????? | | ??????# #????#;"" ""#??????????????????? | | ?????## ##???#"#" @ "#???????????????????? | | ????##" #####"#"""" A""##??????????????????? | | ###" %## #;""""" """""#??????????????????? | | " =*] ;##### ;#####??????????????????? | | ?# # !! " ###] ;#??????????????????????? | | ?# " ! % """!#!!* ##??????????????????????? | | ?####"% != *= "###????????????????????? | | ???# " =! ]=]! " #????????????????????? | | ???### ##### #######; ####????????????????????? | | ?????# #???# "##??# ; #?????????????????????### | | ?????# #???# " ### ; #????????????????## ### | | ?????# #???# ""##"; # #????????????????# | | ?????# ???# # # ##???????????????## | | ?????# ???#""###" ; ; "#????????????????# | | ????? ##??# #?## ### ##????????????????# | | ????? ##???## #??# #?# #???????????????# | | ???? #?????# #??# #?# #???????????????# | | ???? ?????# #??# #?# #???????????????#! | | ???? ?????# #??# #?# #?????????????#%%!% | | ???" ?????# #??# #?# #????????????# "%!!! | | ???# ?????# #??# #?# #??????????? "!%! ## | | ???# ?????###??# #?# #????????? "" #?# | | ???# ??????????# ?# #????????? ####### ??# | | ???# ??????????# ?# #????????????????# ???# | | ???## ??????????# ? #????????????????# ??? | +----------------------------------------------------+ Best States ------------- Heat Dissipation 121 Coolant Potential 240 Energy Generation 101 Energy Capacity 2820 Matter Stores 300 Matter Capacity 300 Sight Range 23 Robot Scan Range 20 Terrain Scan Range 24 Terrain Scan Density 10 ECM Strength 2 Jamming Range 12 Cloak Strength 9 Corruption Block 15 Armor Coverage 600 Utility Shielding 66 Weapon Shielding 66 Point Defense Rating 480 Evasion (%) 69 Targeting Accuracy 42 Core Analysis 8 Armor Integrity Analysis 30 Recoil Reduction 4 Matter Filtering 50 Energy Filtering 50 Particle Charging 50 Kinecelleration 66 Salvage Targeting 3 Offensive Hacking 14 Defensive Hacking 10 Relay Coupler Types 4 Relay Coupler Value 147 Item Schematics ----------------- Huge Storage Unit | -10/Materials | Hacked Hcp. Storage Unit | -10/Materials | Hacked Med. Storage Unit | -9/Materials | Scanalyzed Ragnarok Missile Launcher | -2/Protoforge | Archive Exp. ECM Suite | -2/Protoforge | Archive Exp. Target Analyzer | -2/Protoforge | Archive Exp. Power Amplifier | -2/Protoforge | Archive Exp. Coolant Injector | -2/Protoforge | Archive Com. Tesla Bomb Launcher | -2/Protoforge | Archive Robot Schematics ------------------ None Fabricated ------------ Smartbomb Launcher | x1 | -5/Factory | Preloaded Hcp. Storage Unit | x1 | -4/Factory Repaired ---------- Hvy. Assault Rifle | 40% | -9/Storage Imp. VTOL Module | 72% | -6/Factory Studied --------- Hvy. Assault Rifle | -9/Materials | Hacked Grenade Launcher | -9/Materials | Hacked Nuclear Pulse Thruster | -6/Factory | Hacked Remote Datajack | -6/Factory | Hacked Lgt. Fission Core | -6/Factory | Hacked Field Propulsion Drive | -5/Factory | Hacked Centrium Leg | -2/Quarantine | Hacked Smartbomb Launcher | -2/Quarantine | Hacked Quantum Reactor | -2/Protoforge | Hacked Enh. Nova Cannon | -2/Protoforge | Hacked Cmb. Linear Gravjet | -2/Protoforge | Hacked Alien Tech Used ----------------- Dimensional Node Initializer High-powered Transdimensional Reconstructor Achievements -------------- 100k Club 75k Club Anti-science Crusade Bigger And Badder Fitting Room Hot Stuff Inventory(Loot) Some Acronyms Are Better Than Others Stardust Super-what Now? Tailor-made Victory By Combat Well-fed Force Field Worth The Wait Challenges ------------ None Game ------ Seed NuclearSuperquantumStatue Manual? 0 Play Time 11:26:49 Cumulative 346.1 hours Start 2025.10.25 @ 14:02:31 End 2025.11.01 @ 19:23:06 Sessions 33 Manual Loads 0 Difficulty Rogue Special Mode None Game No. 170 Rogue 162 Adventurer 8 Explorer 0 Win Type 5 Total 22 Types 12/0/4/2/0/1/1/0/1/1 Lore% 89 Gallery% 88 Achievement% 65 Wizard Run 0 Options --------- Layout 2 ASCII 0 Keyboard 1 Movement Numpad Keybinds 1 Fullscreen 1 Font 24/Smallcaps Map View 50x44 Zoom Use 0% Tactical HUD 1 Map Filters SATURATION(78)|BRIGHTNESS(125) Filters SHIFT_HUE(220) Steam 1 RUN: d2b2e35a-44cc-49b5-a9be-035d42044cb2